Workbook

Sheet Figure 1D
A1: section | B1: tdTom+ | C1: GRP+ | D1: tdTom+;GRP+ | E1: (Tom+;GRP+)/tdTom+ | F1: (Tom+;GRP+)/GRP+ | G1: GRP+;tdTom- | H1: GRP-;tdTom+
A2: 1 | B2: 13 | C2: 55 | D2: 12 | E2: =D2/B2*100 -> 92.30769231 | F2: =D2/C2*100 -> 21.81818182 | G2: =C2-D2 -> 43 | H2: =B2-D2 -> 1
A3: 2 | B3: 20 | C3: 74 | D3: 19 | E3: 95 | F3: 25.67567568 | G3: =C3-D3 -> 55 | H3: =B3-D3 -> 1
A4: 3 | B4: 20 | C4: 63 | D4: 19 | E4: 95 | F4: 30.15873016 | G4: 44 | H4: 1
A5: 4 | B5: 11 | C5: 59 | D5: 10 | E5: 90.90909091 | F5: 16.94915254 | G5: 49 | H5: 1
A6: 5 | B6: 23 | C6: 78 | D6: 22 | E6: 95.65217391 | F6: 28.20512821 | G6: 56 | H6: 1
A7: 6 | B7: 13 | C7: 77 | D7: 13 | E7: 100 | F7: 16.88311688 | G7: 64 | H7: 0
A8: 7 | B8: 25 | C8: 66 | D8: 23 | E8: 92 | F8: 34.84848485 | G8: 43 | H8: 2
B11: tdTom+ | C11: GRP+ | D11: tdTom+;GRP+ | E11: Tom+;GRP+ /tdTom+ | F11: Tom+;GRP+/GRP+ | G11: GRP+;tdTom- | H11: GRP-;tdTom+
A12: sum | B12: =AVERAGE(B2:B8) -> 17.85714286 | C12: =AVERAGE(C2:C8) -> 67.42857143 | D12: =AVERAGE(D2:D8) -> 16.85714286 | E12: =AVERAGE(E2:E8) -> 94.40985102 | F12: =AVERAGE(F2:F8) -> 24.93406716 | G12: =C12-D12 -> 50.57142857 | H12: =B12-D12 -> 1
A13: ST DEV | B13: =STDEV(B2:B8) -> 5.4902511 | C13: 9.071147352 | D13: 5.145501965 | E13: 3.054271816 | F13: 6.771607495 | G13: 8.059303999 | H13: 0.5773502692
A14: SE | B14: =B13/SQRT(7) -> 2.075119864 | C14: =C13/SQRT(7) -> 3.428571429 | D14: 1.944816939 | E14: 1.154406238 | F14: 2.559427058 | G14: 3.046130589 | H14: 0.2182178902

Sheet Figure 1G
A1: LMX1B | F1: PAX2 | K1: TLX3 | P1: PKCγ | U1: CB
A3: section | B3: tdtom_LMX1B | C3: tdTomato | F3: section | G3: tdtom+ Pax2 | H3: tdTomato | I3: (tdtom+ Pax2+)/tdtom | K3: section | L3: tdtom+ TLX3+ | M3: tdTomato | N3: (tdtom+ TLX3+)/tdtom | P3: section | Q3: tdtom+ PKCγ+ | R3: tdTom+ | S3: (tdtom+ PKCγ+)/tdtom | U3: section | V3: tdtom+ CB+ | W3: tdTom+ | X3: (tdtom+ CB+)/tdtom
A5: 1 | B5: 26 | C5: 31 | D5: 83.87096774 | F5: 1 | G5: 0 | H5: 23 | I5: 0 | K5: 1 | L5: 15 | M5: 10 | N5: =100/L5*M5 -> 66.66666667 | P5: 1 | Q5: 0 | R5: 28 | S5: =100/R5*Q5 -> 0 | U5: 1 | V5: 9 | W5: 28 | X5: =100/W5*V5 -> 32.14285714
A6: 2 | B6: 27 | C6: 32 | D6: 84.375 | F6: 2 | G6: 0 | H6: 13 | I6: 0 | K6: 2 | L6: 13 | M6: 11 | N6: 84.61538462 | P6: 2 | Q6: 0 | R6: 16 | S6: 0 | U6: 2 | V6: 4 | W6: 16 | X6: 25
A7: 3 | B7: 12 | C7: 14 | D7: 85.71428571 | F7: 3 | G7: 0 | H7: 21 | I7: 0 | K7: 3 | L7: 22 | M7: 17 | N7: 77.27272727 | P7: 3 | Q7: 1 | R7: 33 | S7: 3.03030303 | U7: 3 | V7: 13 | W7: 33 | X7: 39.39393939
A8: 4 | B8: 17 | C8: 21 | D8: 80.95238095 | F8: 4 | G8: 0 | H8: 26 | I8: 0 | K8: 4 | L8: 24 | M8: 21 | N8: 87.5 | P8: 4 | Q8: 0 | R8: 31 | S8: 0 | U8: 4 | V8: 5 | W8: 21 | X8: 23.80952381
A9: 5 | B9: 11 | C9: 14 | D9: 78.57142857 | F9: 5 | G9: 0 | H9: 27 | I9: 0 | K9: 5 | L9: 12 | M9: 8 | N9: 66.66666667 | P9: 5 | Q9: 0 | R9: 17 | S9: 0 | U9: 5 | V9: 4 | W9: 11 | X9: 36.36363636
A10: 6 | B10: 12 | C10: 15 | D10: 80 | F10: 6 | G10: 0 | H10: 28 | I10: 0 | K10: 6 | L10: 19 | M10: 13 | N10: 68.42105263 | P10: 6 | Q10: 1 | R10: 31 | S10: 3.225806452 | U10: 6 | V10: 4 | W10: 18 | X10: 22.22222222
A11: 7 | B11: 10 | C11: 10 | D11: 100 | F11: 7 | G11: 0 | H11: 22 | I11: 0 | K11: 7 | L11: 24 | M11: 21 | N11: 87.5 | P11: 7 | Q11: 0 | R11: 22 | S11: 0 | U11: 7 | V11: 5 | W11: 24 | X11: 20.83333333
A12: 8 | B12: 12 | C12: 13 | D12: 92.30769231 | F12: 8 | G12: 1 | H12: 22 | I12: 4.545454545 | K12: 8 | L12: 23 | M12: 19 | N12: 82.60869565 | P12: 8 | Q12: 2 | R12: 13 | S12: 15.38461538 | U12: 8 | V12: 5 | W12: 15 | X12: 33.33333333
A13: 9 | B13: 13 | C13: 15 | D13: 86.66666667 | F13: 9 | G13: 0 | H13: 21 | I13: 0 | K13: 9 | L13: 20 | M13: 18 | N13: 90 | P13: 9 | Q13: 0 | R13: 11 | S13: 0
K14: 10 | L14: 27 | M14: 25 | N14: 92.59259259 | P14: 10 | Q14: 1 | R14: 18 | S14: 5.555555556
K15: 11 | L15: 17 | M15: 13 | N15: 76.47058824 | P15: 11 | Q15: 2 | R15: 24 | S15: 8.333333333
K16: 12 | L16: 11 | M16: 8 | N16: 72.72727273 | P16: 12 | Q16: 1 | R16: 15 | S16: 6.666666667
K17: 13 | L17: 10 | M17: 8 | N17: 80
K18: 14 | L18: 17 | M18: 12 | N18: 70.58823529
A20: Sum | B20: =SUM(B5:B13) -> 140 | C20: =SUM(C5:C13) -> 165 | F20: Sum | G20: =SUM(G5:G13) -> 1 | H20: =SUM(H5:H13) -> 203 | K20: Sum | L20: =SUM(L5:L18) -> 254 | M20: =SUM(M5:M18) -> 204 | P20: Sum | Q20: =SUM(Q5:Q17) -> 8 | R20: =SUM(R5:R17) -> 259 | U20: Sum | V20: =SUM(V5:V12) -> 49 | W20: =SUM(W5:W12) -> 166
A21: Mean | B21: =AVERAGE(B5:B13) -> 15.55555556 | C21: =AVERAGE(C5:C13) -> 18.33333333 | D21: =AVERAGE(D5:D13) -> 85.82871355 | F21: Mean | G21: =AVERAGE(G5:G13) -> 0.1111111111 | H21: =AVERAGE(H5:H13) -> 22.55555556 | I21: =AVERAGE(I5:I13) -> 0.5050505051 | K21: Mean | L21: =AVERAGE(L5:L18) -> 18.14285714 | M21: =AVERAGE(M5:M18) -> 14.57142857 | N21: =AVERAGE(N5:N18) -> 78.83070588 | P21: Mean | Q21: =AVERAGE(Q5:Q17) -> 0.6666666667 | R21: =AVERAGE(R5:R17) -> 21.58333333 | S21: =AVERAGE(S5:S17) -> 3.516356702 | U21: Mean | V21: =AVERAGE(V5:V12) -> 6.125 | W21: =AVERAGE(W5:W12) -> 20.75 | X21: =AVERAGE(X5:X12) -> 29.1373557
A22: STDEV | B22: =STDEV(B5:B13) -> 6.502136401 | C22: =STDEV(C5:C13) -> 8 | D22: =STDEV(D5:D13) -> 6.707128137 | F22: STDEV | G22: =STDEV(G5:G13) -> 0.3333333333 | H22: =STDEV(H5:H13) -> 4.447221355 | I22: =STDEV(I5:I13) -> 1.515151515 | K22: STDEV | L22: =STDEV(L5:L18) -> 5.432907464 | M22: =STDEV(M5:M18) -> 5.570724103 | N22: =STDEV(N5:N18) -> 8.905638631 | P22: STDEV | Q22: =STDEV(Q5:Q17) -> 0.7784989442 | R22: =STDEV(R5:R17) -> 7.680652592 | S22: =STDEV(S5:S17) -> 4.792521326 | U22: STDEV | V22: =STDEV(V5:V14) -> 3.226563851 | W22: =STDEV(W5:W14) -> 7.285013972 | X22: =STDEV(X5:X14) -> 7.033951052
A23: number | B23: =COUNT(B5:B13) -> 9 | C23: =COUNT(C5:C13) -> 9 | D23: =COUNT(D5:D13) -> 9 | F23: number | G23: =COUNT(G5:G13) -> 9 | H23: =COUNT(H5:H13) -> 9 | I23: =COUNT(I5:I13) -> 9 | K23: number | L23: =COUNT(L5:L18) -> 14 | M23: =COUNT(M5:M18) -> 14 | N23: =COUNT(N5:N18) -> 14 | P23: number | Q23: =COUNT(Q5:Q17) -> 12 | R23: =COUNT(R5:R17) -> 12 | S23: =COUNT(S5:S17) -> 12 | U23: number | V23: =COUNT(V5:V16) -> 8 | W23: =COUNT(W5:W13) -> 8 | X23: =COUNT(X5:X16) -> 8
A24: SEM | B24: =B22/(SQRT(B23)) -> 2.1673788 | C24: =C22/(SQRT(C23)) -> 2.666666667 | D24: 2.235709379 | F24: SEM | G24: =G22/(SQRT(G23)) -> 0.1111111111 | H24: =H22/(SQRT(H23)) -> 1.482407118 | I24: 0.5050505051 | K24: SEM | L24: =L22/SQRT(L23) -> 1.452005596 | M24: =M22/SQRT(M23) -> 1.488838642 | N24: 2.380132041 | P24: SEM | Q24: =Q22/(SQRT(Q23)) -> 0.2247332875 | R24: =R22/(SQRT(R23)) -> 2.217213421 | S24: 1.383481739 | U24: SEM | V24: =V22/(SQRT(V23)) -> 1.14076259 | W24: =W22/(SQRT(W23)) -> 2.57564139 | X24: 2.486877244

Sheet Figure 1H
B1: section | C1: NeuN + | D1: GRP-tdTom + | E1: GRP-tdTom + / NeuN +
A2: animal 1 | B2: 1 | C2: 419 | D2: 0 | E2: =D2/C2 *100 -> 0
B3: 2 | C3: 317 | D3: 0 | E3: =D3/C3 *100 -> 0
B4: 3 | C4: 526 | D4: 0 | E4: 0
B5: 4 | C5: 334 | D5: 0 | E5: 0
A6: animal 2 | B6: 5 | C6: 254 | D6: 0 | E6: 0
B7: 6 | C7: 367 | D7: 0 | E7: 0
B8: 7 | C8: 119 | D8: 0 | E8: 0
B9: 8 | C9: 284 | D9: 0 | E9: 0
A10: animal 3 | B10: 9 | C10: 555 | D10: 0 | E10: 0
B11: 10 | C11: 178 | D11: 0 | E11: 0
B12: 11 | C12: 432 | D12: 0 | E12: 0
B13: 12 | C13: 233 | D13: 1 | E13: 0.4291845494
A14: animal 4 | B14: 13 | C14: 358 | D14: 0 | E14: 0
B15: 14 | C15: 176 | D15: 0 | E15: 0
B16: 15 | C16: 197 | D16: 0 | E16: 0
B17: 16 | C17: 217 | D17: 0 | E17: 0
A19: Sum | C19: =SUM(C2:C17) -> 4966 | D19: =SUM(D2:D17) -> 1 | E19: =SUM(E2:E17) -> 0.4291845494
A20: Mean | C20: =AVERAGE(C2:C17) -> 310.375 | D20: =AVERAGE(D2:D17) -> 0.0625 | E20: =AVERAGE(E2:E17) -> 0.02682403433
A21: STDEV | C21: =STDEV(C2:C17) -> 127.1853634 | D21: 0.25 | E21: =STDEV(E2:E17) -> 0.1072961373
A22: number | C22: =COUNT(C2:C17) -> 16 | D22: 16 | E22: =COUNT(E2:E17) -> 16
A23: SEM | C23: =C21/(SQRT(C22)) -> 31.79634085 | D23: 0.0625 | E23: =E21/(SQRT(E22)) -> 0.02682403433

Sheet Figure 2D
A1: LMX1B | F1: PAX2 | K1: TLX3 | P1: PKCγ | U1: CB
A3: section | B3: GRP-eGFP+ | C3: Lmx1b+ | D3: % | F3: section | G3: GRP-eGFP+ | H3: Pax2+ | K3: section | L3: GRP-eGFP+ | M3: Tlx3+ | P3: section | Q3: GRP-eGFP+ | R3: Pkcg+ | U3: section | V3: GRP-eGFP+ | W3: CB+
A4: 1 | B4: 33 | C4: 19 | D4: =C4/B4*100 -> 57.57575758 | F4: 1 | G4: =L4 -> 19 | H4: 0 | I4: =H4/G4*100 -> 0 | K4: 1 | L4: 19 | M4: 13 | N4: =M4/L4*100 -> 68.42105263 | P4: 1 | Q4: 33 | R4: 6 | S4: =R4/Q4*100 -> 18.18181818 | U4: 1 | V4: 10 | W4: 1 | X4: =W4/V4*100 -> 10
A5: 2 | B5: 27 | C5: 13 | D5: =C5/B5*100 -> 48.14814815 | F5: 2 | G5: 22 | H5: 0 | I5: =H5/G5*100 -> 0 | K5: 2 | L5: 22 | M5: 17 | N5: =M5/L5*100 -> 77.27272727 | P5: 2 | Q5: 27 | R5: 4 | S5: =R5/Q5*100 -> 14.81481481 | U5: 2 | V5: 18 | W5: 3 | X5: =W5/V5*100 -> 16.66666667
A6: 3 | B6: 20 | C6: 14 | D6: 70 | F6: 3 | G6: 18 | H6: 0 | I6: 0 | K6: 3 | L6: 18 | M6: 14 | N6: 77.77777778 | P6: 3 | Q6: 20 | R6: 4 | S6: 20 | U6: 3 | V6: 19 | W6: 1 | X6: 5.263157895
A7: 4 | B7: 13 | C7: 13 | D7: 100 | F7: 4 | G7: 14 | H7: 0 | I7: 0 | K7: 4 | L7: 14 | M7: 10 | N7: 71.42857143 | P7: 4 | Q7: 13 | R7: 1 | S7: 7.692307692 | U7: 4 | V7: 14 | W7: 4 | X7: 28.57142857
A8: 5 | B8: 29 | C8: 17 | D8: 58.62068966 | F8: 5 | G8: 19 | H8: 0 | I8: 0 | K8: 5 | L8: 19 | M8: 10 | N8: 52.63157895 | P8: 5 | Q8: 29 | R8: 2 | S8: 6.896551724 | U8: 5 | V8: 17 | W8: 3 | X8: 17.64705882
A9: 6 | B9: 22 | C9: 21 | D9: 95.45454545 | F9: 6 | G9: 13 | H9: 0 | I9: 0 | K9: 6 | L9: 13 | M9: 12 | N9: 92.30769231 | P9: 6 | Q9: 22 | R9: 1 | S9: 4.545454545 | U9: 6 | V9: 12 | W9: 3 | X9: 25
A10: 7 | B10: 13 | C10: 8 | D10: 61.53846154 | F10: 7 | G10: 13 | H10: 0 | I10: 0 | K10: 7 | L10: 13 | M10: 7 | N10: 53.84615385 | P10: 7 | Q10: 13 | R10: 1 | S10: 7.692307692 | U10: 7 | V10: 15 | W10: 2 | X10: 13.33333333
A11: 8 | B11: 24 | C11: 24 | D11: 100 | F11: 8 | G11: 13 | H11: 0 | I11: 0 | P11: 8 | Q11: 24 | R11: 2 | S11: 8.333333333 | U11: 8 | V11: 20 | W11: 2 | X11: 10
F12: 9 | G12: 18 | H12: 0 | I12: 0 | P12: 9 | Q12: 16 | R12: 2 | S12: 12.5 | U12: 9 | V12: 8 | W12: 5 | X12: 62.5
D14: =AVERAGE(D4:D12) -> 73.9172003 | I14: =AVERAGE(I4:I12) -> 0 | N14: =AVERAGE(N4:N12) -> 70.52650774 | S14: =AVERAGE(S4:S12) -> 11.18406533 | X14: =AVERAGE(X4:X12) -> 20.99796059
A17: Sum | B17: =SUM(B4:B12) -> 181 | C17: =SUM(C4:C12) -> 129 | F17: Sum | G17: =SUM(G4:G12) -> 149 | H17: =SUM(H4:H12) -> 0 | K17: Sum | L17: =SUM(L4:L12) -> 118 | M17: =SUM(M4:M12) -> 83 | P17: Sum | Q17: =SUM(Q4:Q12) -> 197 | R17: =SUM(R4:R12) -> 23 | U17: Sum | V17: =SUM(V4:V12) -> 133 | W17: =SUM(W4:W12) -> 24
A18: Mean | B18: =AVERAGE(B4:B12) -> 22.625 | C18: =AVERAGE(C4:C12) -> 16.125 | D18: =AVERAGE(D4:D12) -> 73.9172003 | F18: Mean | G18: =AVERAGE(G4:G12) -> 16.55555556 | H18: =AVERAGE(H4:H12) -> 0 | I18: =AVERAGE(I4:I12) -> 0 | K18: Mean | L18: =AVERAGE(L4:L12) -> 16.85714286 | M18: =AVERAGE(M4:M12) -> 11.85714286 | N18: =AVERAGE(N4:N12) -> 70.52650774 | P18: Mean | Q18: =AVERAGE(Q4:Q12) -> 21.88888889 | R18: =AVERAGE(R4:R12) -> 2.555555556 | S18: =AVERAGE(S4:S12) -> 11.18406533 | U18: Mean | V18: =AVERAGE(V4:V12) -> 14.77777778 | W18: =AVERAGE(W4:W12) -> 2.666666667 | X18: =AVERAGE(X4:X12) -> 20.99796059
A19: STDEV | B19: =STDEV(B2:B10) -> 7.742892286 | C19: =STDEV(C2:C10) -> 4.358898944 | D19: =STDEV(D4:D12) -> 21.24056021 | F19: STDEV | G19: =STDEV(G2:G10) -> 3.532165126 | H19: =STDEV(H2:H10) -> 0 | I19: =STDEV(I4:I12) -> 0 | K19: STDEV | L19: =STDEV(L2:L10) -> 3.532165126 | M19: =STDEV(M2:M10) -> 3.236694375 | N19: =STDEV(N4:N12) -> 14.00131981 | P19: STDEV | Q19: =STDEV(Q2:Q10) -> 7.742892286 | R19: =STDEV(R2:R10) -> 1.97604704 | S19: =STDEV(S4:S12) -> 5.437929486 | U19: STDEV | V19: =STDEV(V2:V10) -> 3.265986324 | W19: =STDEV(W2:W10) -> 1.133893419 | X19: =STDEV(X4:X12) -> 17.22651467
A20: number | B20: =COUNT(B4:B12) -> 8 | C20: =COUNT(C4:C12) -> 8 | D20: 8 | F20: number | G20: =COUNT(G4:G12) -> 9 | H20: =COUNT(H4:H12) -> 9 | I20: 9 | K20: number | L20: =COUNT(L4:L12) -> 7 | M20: =COUNT(M4:M12) -> 7 | N20: 7 | P20: number | Q20: =COUNT(Q4:Q12) -> 9 | R20: =COUNT(R4:R12) -> 9 | S20: 9 | U20: number | V20: =COUNT(V4:V12) -> 9 | W20: =COUNT(W4:W12) -> 9 | X20: 9
A21: SEM | B21: =B19/(SQRT(B20)) -> 2.737525821 | C21: =C19/(SQRT(C20)) -> 1.541103501 | D21: 7.509672079 | F21: SEM | G21: =G19/(SQRT(G20)) -> 1.177388375 | H21: =H19/(SQRT(H20)) -> 0 | I21: 0 | K21: SEM | L21: =L19/(SQRT(L20)) -> 1.33503293 | M21: =M19/(SQRT(M20)) -> 1.223355484 | N21: 5.292001464 | P21: SEM | Q21: =Q19/(SQRT(Q20)) -> 2.580964095 | R21: =R19/(SQRT(R20)) -> 0.6586823467 | S21: 1.812643162 | U21: SEM | V21: =V19/(SQRT(V20)) -> 1.088662108 | W21: =W19/(SQRT(W20)) -> 0.377964473 | X21: 5.742171558

Sheet Figure 3C
B1: GRP::cre; Rosa26 iDTR - | C1: GRP::cre; Rosa26 iDTR +
B2: 91 | C2: 64
B3: 90 | C3: 46
B4: 86 | C4: 40
B5: 59 | C5: 71
B6: 91 | C6: 27
B7: 81 | C7: 52
B8: 116 | C8: 28
B9: 93 | C9: 50
B10: 107 | C10: 75
B11: 106 | C11: 58
B12: 84 | C12: 64
B13: 63 | C13: 51
B14: 79 | C14: 54
B15: 115 | C15: 60
B16: 85 | C16: 80
B17: 68 | C17: 36
B18: 88 | C18: 69
B19: 109 | C19: 78
C20: 50
C21: 49
C22: 59
C23: 74
C24: 57
C25: 56
C26: 48
C27: 40
C28: 63
C29: 40
C30: 71
C31: 65
C32: 32
C33: 91
C34: 44
C35: 88
C36: 42
C37: 77
C38: 68
C39: 63
C40: 54
C41: 75
C42: 90
C43: 55
C44: 54
C45: 63
C46: 54
C47: 107
C48: 66
C49: 82
C50: 66
C51: 72
C52: 65
C53: 57
C54: 78
C55: 73
C56: 59
C57: 62
C58: 91
C59: 78
C60: 76
C61: 79
C62: 73
C63: 66
C64: 73
C65: 68
C66: 80
C67: 64
C68: 68
C69: 72
C70: 63
C71: 77
C72: 82
C73: 71
A76: Mean | B76: =AVERAGE(B2:B73) -> 89.5 | C76: =AVERAGE(C2:C73) -> 63.79166667
A77: STDEV | B77: =STDEV(B2:B73) -> 16.57514085 | C77: =STDEV(C2:C73) -> 15.61232585
A78: number | B78: =COUNT(B2:B73) -> 18 | C78: =COUNT(C2:C73) -> 72
A79: SEM | B79: =B77/(SQRT(B78)) -> 3.906798164 | C79: =C77/(SQRT(C78)) -> 1.839930246
A81: ttest | C81: =TTEST(B2:B19,C2:C73,2,2) -> 2.004875076e-08

Sheet Figure 3E
A1: mouse number | B1: Genotype | C1: section | D1: IC | E1: VP | F1: Lve | G1: 7D | I1: mouse number | J1: Genotype | K1: section | L1: IC | M1: VP | N1: Lve | O1: 7D
A2: 705 | B2: GrpCre Tom/iDTR | C2: 1 | D2: 178 | E2: 61 | F2: 15 | G2: 19 | I2: 8742 | J2: GrpCre Tom/wt | K2: 1 | L2: 171 | M2: 118 | N2: 11 | O2: 28
C3: 2 | D3: 332 | E3: 55 | F3: 11 | G3: 6 | K3: 2 | L3: 98 | M3: 87 | N3: 10 | O3: 18
C4: 3 | D4: 214 | E4: 45 | F4: 12 | G4: 24 | K4: 3 | L4: 333 | M4: 64 | N4: 7 | O4: 19
A5: 707 | B5: GrpCre Tom/iDTR | C5: 4 | D5: 143 | E5: 104 | F5: 13 | G5: 24 | I5: 8743 | J5: GrpCre Tom/wt | K5: 4 | L5: 147 | M5: 71 | N5: 26 | O5: 20
C6: 5 | D6: 91 | E6: 81 | F6: 16 | G6: 23 | K6: 5 | L6: 189 | M6: 58 | N6: 19 | O6: 11
C7: 6 | D7: 91 | E7: 82 | F7: 15 | G7: 15 | K7: 6 | L7: 158 | M7: 102 | N7: 17 | O7: 17
A8: 708 | B8: GrpCre Tom/iDTR | C8: 7 | D8: 216 | E8: 59 | F8: 10 | G8: 17
C9: 8 | D9: 107 | E9: 63 | G9: 21
C10: 9 | D10: 250 | E10: 49 | F10: 11 | G10: 20
A14: GrpCre Tom/iDTR | L14: AVERAGE | M14: SE | N14: TTEST
A15: IC | B15: 178 | C15: 332 | D15: 214 | E15: 143 | F15: 91 | G15: 91 | H15: 216 | I15: 107 | J15: 250 | L15: =AVERAGE(B15:J15) -> 180.2222222 | M15: =STDEV(B15:J15)/SQRT(COUNT(B15:J15)) -> 27.1312539 | N15: =TTEST(B15:J15,B21:G21,2,2) -> 0.9550860789
A16: VP | B16: 61 | C16: 55 | D16: 45 | E16: 104 | F16: 81 | G16: 82 | H16: 59 | I16: 63 | J16: 49 | L16: =AVERAGE(B16:J16) -> 66.55555556 | M16: =STDEV(B16:J16)/SQRT(COUNT(B16:J16)) -> 6.298392897 | N16: =TTEST(B16:J16,B22:G22,2,2) -> 0.1486374984
A17: Lve | B17: 15 | C17: 11 | D17: 12 | E17: 13 | F17: 16 | G17: 15 | H17: 10 | J17: 11 | L17: 12.875 | M17: 0.7891564212 | N17: =TTEST(B17:J17,B23:G23,2,2) -> 0.4318886399
A18: 7D | B18: 19 | C18: 6 | D18: 24 | E18: 24 | F18: 23 | G18: 15 | H18: 17 | I18: 21 | J18: 20 | L18: 18.77777778 | M18: 1.898667499 | N18: =TTEST(B18:J18,B24:G24,2,2) -> 0.9853167696
A20: GrpCre Tom/wt | L20: AVERAGE
A21: IC | B21: 171 | C21: 98 | D21: 333 | E21: 147 | F21: 189 | G21: 158 | L21: =AVERAGE(B21:J21) -> 182.6666667
A22: VP | B22: 118 | C22: 87 | D22: 64 | E22: 71 | F22: 58 | G22: 102 | L22: =AVERAGE(B22:J22) -> 83.33333333
A23: Lve | B23: 11 | C23: 10 | D23: 7 | E23: 26 | F23: 19 | G23: 17 | L23: 15
A24: 7D | B24: 28 | C24: 18 | D24: 19 | E24: 20 | F24: 11 | G24: 17 | L24: 18.83333333
A26: NORMALIZED
A27: GrpCre Tom/iDTR | L27: AVERAGE | M27: SE | N27: TTEST
A28: IC | B28: =B15/$L21*100 -> 97.44525547 | C28: 181.7518248 | D28: 117.1532847 | E28: 78.28467153 | F28: 49.81751825 | G28: 49.81751825 | H28: 118.2481752 | I28: 58.57664234 | J28: 136.8613139 | L28: =AVERAGE(B28:J28) -> 98.66180049 | M28: =STDEV(B28:J28)/SQRT(COUNT(B28:J28)) -> 14.85287622 | N28: =TTEST(B28:J28,B35:G35,2,2) -> 0.9550860789
A29: VP | B29: =B16/$L22*100 -> 73.2 | C29: 66 | D29: 54 | E29: 124.8 | F29: 97.2 | G29: 98.4 | H29: 70.8 | I29: 75.6 | J29: 58.8 | L29: =AVERAGE(B29:J29) -> 79.86666667 | M29: =STDEV(B29:J29)/SQRT(COUNT(B29:J29)) -> 7.558071477 | N29: =TTEST(B29:J29,B36:G36,2,2) -> 0.1486374984
A30: Lve | B30: =B17/$L23*100 -> 100 | C30: 73.33333333 | D30: 80 | E30: 86.66666667 | F30: 106.6666667 | G30: 100 | H30: 66.66666667 | J30: =J17/$L23*100 -> 73.33333333 | L30: 85.83333333 | M30: 5.261042808 | N30: =TTEST(B30:J30,B37:G37,2,2) -> 0.4318886399
A31: 7D | B31: 100.8849558 | C31: 31.85840708 | D31: 127.4336283 | E31: 127.4336283 | F31: 122.1238938 | G31: 79.6460177 | H31: 90.26548673 | I31: =I18/$L24*100 -> 111.5044248 | J31: =J18/$L24*100 -> 106.1946903 | L31: 99.70501475 | M31: 10.08142035 | N31: =TTEST(B31:J31,B38:G38,2,2) -> 0.9853167696
A33: NORMALIZED
A34: GrpCre Tom/wt | L34: AVERAGE
A35: IC | B35: =B21/$L21*100 -> 93.61313869 | C35: 53.64963504 | D35: 182.2992701 | E35: 80.47445255 | F35: 103.4671533 | G35: 86.49635036 | L35: =AVERAGE(B35:J35) -> 100
A36: VP | B36: 141.6 | C36: 104.4 | D36: 76.8 | E36: 85.2 | F36: 69.6 | G36: 122.4 | L36: =AVERAGE(B36:J36) -> 100
A37: Lve | B37: 73.33333333 | C37: 66.66666667 | D37: 46.66666667 | E37: 173.3333333 | F37: 126.6666667 | G37: 113.3333333 | L37: 100
A38: 7D | B38: 148.6725664 | C38: 95.57522124 | D38: 100.8849558 | E38: 106.1946903 | F38: 58.40707965 | G38: 90.26548673 | L38: 100

Sheet Figure 3G
A1: mouse number | B1: Genotype | C1: section | D1: Cervical | E1: Thoracic | F1: Lumbar | G1: Sacral | I1: mouse number | J1: Genotype | K1: section | L1: Cervical | M1: Thoracic | N1: Lumbar | O1: Sacral
A2: 704 | B2: GrpCre Tom/iDTR | C2: 1 | D2: 48 | E2: 12 | F2: 11 | G2: 5 | I2: 8742 | J2: GrpCre Tom/wt | K2: 1 | L2: 26 | M2: 22 | N2: 28 | O2: 17
C3: 2 | D3: 39 | E3: 17 | F3: 16 | G3: 2 | K3: 2 | L3: 27 | M3: 15 | N3: 20 | O3: 18
C4: 3 | D4: 19 | E4: 19 | F4: 17 | G4: 6 | K4: 3 | L4: 29 | M4: 17 | N4: 15 | O4: 20
A5: 705 | B5: GrpCre Tom/iDTR | C5: 4 | D5: 6 | E5: 4 | F5: 10 | G5: 6 | I5: 8743 | J5: GrpCre Tom/wt | K5: 4 | L5: 31 | M5: 17 | N5: 27 | O5: 13
C6: 5 | D6: 26 | E6: 7 | F6: 7 | G6: 5 | K6: 5 | L6: 63 | M6: 10 | N6: 20 | O6: 7
C7: 6 | D7: 9 | E7: 5 | F7: 10 | G7: 3 | K7: 6 | L7: 45 | M7: 22 | N7: 19 | O7: 12
A8: 707 | B8: GrpCre Tom/iDTR | C8: 7 | D8: 7 | E8: 2 | F8: 10 | G8: 5
C9: 8 | D9: 18 | E9: 5 | F9: 15 | G9: 2
C10: 9 | D10: 16 | E10: 4 | F10: 7 | G10: 6
A11: 708 | B11: GrpCre Tom/iDTR | C11: 10 | D11: 25 | E11: 10 | F11: 3 | G11: 5
C12: 11 | D12: 13 | E12: 13 | F12: 5 | G12: 4
C13: 12 | D13: 13 | E13: 4 | F13: 11 | G13: 9
A14: 709 | B14: GrpCre Tom/iDTR | C14: 13 | D14: 40 | E14: 10 | F14: 10 | G14: 4
C15: 14 | D15: 26 | E15: 7 | F15: 12 | G15: 7
C16: 15 | D16: 22 | E16: 3 | F16: 15 | G16: 11
S20: AVERGE | T20: SE | U20: TTEST
A21: GrpCre Tom/iDTR
B22: Cervical | C22: 48 | D22: 39 | E22: 19 | F22: 6 | G22: 26 | H22: 9 | I22: 7 | J22: 18 | K22: 16 | L22: 25 | M22: 13 | N22: 13 | O22: 40 | P22: 26 | Q22: 22 | S22: =AVERAGE(C22:Q22) -> 21.8 | T22: =STDEV(C22:Q22)/SQRT(COUNT(C22:Q22)) -> 3.238459363 | U22: =TTEST(C22:Q22,C28:H28,2,2) -> 0.02824719049
B23: Thoracic | C23: 12 | D23: 17 | E23: 19 | F23: 4 | G23: 7 | H23: 5 | I23: 2 | J23: 5 | K23: 4 | L23: 10 | M23: 13 | N23: 4 | O23: 10 | P23: 7 | Q23: 3 | S23: =AVERAGE(C23:Q23) -> 8.133333333 | T23: =STDEV(C23:Q23)/SQRT(COUNT(C23:Q23)) -> 1.344713341 | U23: =TTEST(C23:Q23,C29:H29,2,2) -> 0.001483065364
B24: Lumbar | C24: 11 | D24: 16 | E24: 17 | F24: 10 | G24: 7 | H24: 10 | I24: 10 | J24: 15 | K24: 7 | L24: 3 | M24: 5 | N24: 11 | O24: 10 | P24: 12 | Q24: 15 | S24: 10.6 | T24: 1.041061729 | U24: 4.722577381e-05
B25: Sacral | C25: 5 | D25: 2 | E25: 6 | F25: 6 | G25: 5 | H25: 3 | I25: 5 | J25: 2 | K25: 6 | L25: 5 | M25: 4 | N25: 9 | O25: 4 | P25: 7 | Q25: 11 | S25: 5.333333333 | T25: 0.6223355906 | U25: 1.050812508e-05
A27: GrpCre Tom/wt | S27: AVERGE
B28: Cervical | C28: 26 | D28: 27 | E28: 29 | F28: 31 | G28: 63 | H28: 45 | S28: =AVERAGE(C28:Q28) -> 36.83333333
B29: Thoracic | C29: 22 | D29: 15 | E29: 17 | F29: 17 | G29: 10 | H29: 22 | S29: 17.16666667
B30: Lumbar | C30: 28 | D30: 20 | E30: 15 | F30: 27 | G30: 20 | H30: 19 | S30: 21.5
B31: Sacral | C31: 17 | D31: 18 | E31: 20 | F31: 13 | G31: 7 | H31: 12 | S31: 14.5
A34: NORMALIZED
A35: GrpCre Tom/iDTR | S35: AVERGE | T35: SE | U35: TTEST
B36: Cervical | C36: =C22/$S$28*100 -> 130.3167421 | D36: 105.8823529 | E36: 51.58371041 | F36: 16.28959276 | G36: 70.58823529 | H36: 24.43438914 | I36: 19.00452489 | J36: 48.86877828 | K36: 43.43891403 | L36: 67.87330317 | M36: 35.29411765 | N36: 35.29411765 | O36: 108.5972851 | P36: 70.58823529 | Q36: 59.72850679 | S36: =AVERAGE(C36:Q36) -> 59.18552036 | T36: =STDEV(C36:Q36)/SQRT(COUNT(C36:Q36)) -> 8.792197366 | U36: =TTEST(C36:Q36,C43:H43,2,2) -> 0.02824719049
B37: Thoracic | C37: =C23/$S$29*100 -> 69.90291262 | D37: 99.02912621 | E37: 110.6796117 | F37: 23.30097087 | G37: 40.77669903 | H37: 29.12621359 | I37: 11.65048544 | J37: 29.12621359 | K37: 23.30097087 | L37: 58.25242718 | M37: 75.72815534 | N37: 23.30097087 | O37: 58.25242718 | P37: 40.77669903 | Q37: 17.47572816 | S37: =AVERAGE(C37:Q37) -> 47.37864078 | T37: =STDEV(C37:Q37)/SQRT(COUNT(C37:Q37)) -> 7.833281595 | U37: =TTEST(C37:Q37,C44:H44,2,2) -> 0.001483065364
B38: Lumbar | C38: =C24/$S$30*100 -> 51.1627907 | D38: 74.41860465 | E38: 79.06976744 | F38: 46.51162791 | G38: 32.55813953 | H38: 46.51162791 | I38: 46.51162791 | J38: 69.76744186 | K38: 32.55813953 | L38: 13.95348837 | M38: 23.25581395 | N38: 51.1627907 | O38: 46.51162791 | P38: 55.81395349 | Q38: 69.76744186 | S38: 49.30232558 | T38: 4.842147577 | U38: 4.722577381e-05
B39: Sacral | C39: =C25/$S$31*100 -> 34.48275862 | D39: 13.79310345 | E39: 41.37931034 | F39: 41.37931034 | G39: 34.48275862 | H39: 20.68965517 | I39: 34.48275862 | J39: 13.79310345 | K39: 41.37931034 | L39: 34.48275862 | M39: 27.5862069 | N39: 62.06896552 | O39: 27.5862069 | P39: 48.27586207 | Q39: 75.86206897 | S39: =AVERAGE(C39:Q39) -> 36.7816092 | T39: 4.29196959 | U39: 1.050812508e-05
A41: NORMALIZED
A42: GrpCre Tom/wt | S42: AVERGE
B43: Cervical | C43: =C28/$S28*100 -> 70.58823529 | D43: 73.30316742 | E43: 78.73303167 | F43: 84.16289593 | G43: 171.040724 | H43: 122.1719457 | S43: =AVERAGE(C43:Q43) -> 100
B44: Thoracic | C44: 128.1553398 | D44: 87.37864078 | E44: 99.02912621 | F44: 99.02912621 | G44: 58.25242718 | H44: 128.1553398 | S44: =AVERAGE(C44:Q44) -> 100
B45: Lumbar | C45: 130.2325581 | D45: 93.02325581 | E45: 69.76744186 | F45: 125.5813953 | G45: 93.02325581 | H45: 88.37209302 | S45: 100
B46: Sacral | C46: 117.2413793 | D46: 124.137931 | E46: 137.9310345 | F46: 89.65517241 | G46: 48.27586207 | H46: 82.75862069 | S46: 100

Sheet Figure 4A-D
A1: CQ
A2: 8µg/µl
A3: volume: 10µl
A4: injections:intradermal/calf
C6: GRP::wt_rosa26-iDTR | N6: GRP::Cre_rosa26-iDTR
B7: time | M7: time
B8: 0-5 | C8: 81 | D8: 61 | E8: 54 | F8: 25 | G8: 42 | H8: 7 | I8: 34 | J8: 22 | K8: 78 | M8: 0-5 | N8: 36 | O8: 47 | P8: 50 | Q8: 40 | R8: 53 | S8: 48 | T8: 12 | U8: 18 | V8: 17
B9: 5-10 | C9: 58 | D9: 82 | E9: 49 | F9: 30 | G9: 65 | H9: 26 | I9: 42 | J9: 26 | K9: 36 | M9: 5-10 | N9: 0 | O9: 18 | P9: 43 | Q9: 38 | R9: 15 | S9: 56 | T9: 19 | U9: 29 | V9: 0
B10: 10-15 | C10: 10 | D10: 0 | E10: 42 | F10: 10 | G10: 72 | H10: 32 | I10: 23 | J10: 59 | K10: 68 | M10: 10-15 | N10: 32 | O10: 45 | P10: 47 | Q10: 46 | R10: 22 | S10: 0 | T10: 36 | U10: 73 | V10: 0
B11: 15-20 | C11: 0 | D11: 50 | E11: 0 | F11: 2 | G11: 89 | H11: 17 | I11: 6 | J11: 13 | K11: 0 | M11: 15-20 | N11: 11 | O11: 18 | P11: 0 | Q11: 0 | R11: 1 | S11: 0 | T11: 0 | U11: 17 | V11: 24
B12: 20-25 | C12: 0 | D12: 0 | E12: 0 | F12: 44 | G12: 0 | H12: 0 | I12: 23 | J12: 0 | K12: 0 | M12: 20-25 | N12: 0 | O12: 0 | P12: 0 | Q12: 0 | R12: 2 | S12: 4 | T12: 0 | U12: 1 | V12: 7
B13: 25-30 | C13: 0 | D13: 0 | E13: 0 | F13: 4 | G13: 0 | H13: 0 | I13: 0 | J13: 0 | K13: 0 | M13: 25-30 | N13: 0 | O13: 0 | P13: 7 | Q13: 0 | R13: 0 | S13: 0 | T13: 8 | U13: 0 | V13: 0
B14: tot | C14: =SUM(C8:C13) -> 149 | D14: =SUM(D8:D13) -> 193 | E14: 145 | F14: 115 | G14: 268 | H14: 82 | I14: 128 | J14: 120 | K14: 182 | M14: tot | N14: =SUM(N8:N13) -> 79 | O14: =SUM(O8:O13) -> 128 | P14: 147 | Q14: 124 | R14: 93 | S14: 108 | T14: 75 | U14: 138 | V14: 48
B16: Mean | C16: =AVERAGE(C14:K14) -> 153.5555556 | M16: Mean | N16: =AVERAGE(N14:V14) -> 104.4444444
B17: STDEV | C17: =STDEV(C14:K14) -> 54.70628646 | M17: STDEV | N17: =STDEV(N14:V14) -> 33.01178241
B18: number | C18: =COUNT(C14:K14) -> 9 | M18: number | N18: =COUNT(N14:V14) -> 9 | X18: ttest | Y18: =TTEST(C14:K14,N14:V14,2,2) -> 0.03484089139
B19: SEM | C19: =C17/SQRT(C18) -> 18.23542882 | M19: SEM | N19: =N17/SQRT(N18) -> 11.00392747
A21: Histamine
A22: 10µg/µl
A23: volume: 10µl
A24: injections:intradermal/calf
C26: GRP::wt_rosa26-iDTR | N26: GRP::Cre_rosa26-iDTR
B27: time | M27: time
B28: 0-5 | C28: 99 | D28: 134 | E28: 107 | F28: 44 | G28: 12 | H28: 62 | I28: 23 | J28: 90 | K28: 68 | M28: 0-5 | N28: 54 | O28: 16 | P28: 74 | Q28: 61 | R28: 37 | S28: 78 | T28: 83 | U28: 53 | V28: 20
B29: 5-10 | C29: 96 | D29: 149 | E29: 0 | F29: 76 | G29: 162 | H29: 115 | I29: 148 | J29: 45 | K29: 73 | M29: 5-10 | N29: 60 | O29: 33 | P29: 44 | Q29: 29 | R29: 22 | S29: 168 | T29: 42 | U29: 24 | V29: 33
B30: 10-15 | C30: 61 | D30: 32 | E30: 88 | F30: 42 | G30: 17 | H30: 33 | I30: 0 | J30: 156 | K30: 133 | M30: 10-15 | N30: 47 | O30: 0 | P30: 44 | Q30: 46 | R30: 120 | S30: 106 | T30: 93 | U30: 1 | V30: 0
B31: 15-20 | C31: 0 | D31: 0 | E31: 82 | F31: 76 | G31: 0 | H31: 100 | I31: 44 | J31: 23 | K31: 37 | M31: 15-20 | N31: 0 | O31: 97 | P31: 38 | Q31: 101 | R31: 0 | S31: 9 | T31: 127 | U31: 144 | V31: 42
B32: 20-25 | C32: 0 | D32: 70 | E32: 94 | F32: 151 | G32: 0 | H32: 88 | I32: 96 | J32: 223 | K32: 0 | M32: 20-25 | N32: 36 | O32: 5 | P32: 56 | Q32: 0 | R32: 0 | S32: 0 | T32: 0 | U32: 63 | V32: 131
B33: 25-30 | C33: 0 | D33: 145 | E33: 0 | F33: 0 | G33: 0 | H33: 0 | I33: 67 | J33: 37 | K33: 43 | M33: 25-30 | N33: 113 | O33: 0 | P33: 0 | Q33: 0 | R33: 0 | S33: 0 | T33: 100 | U33: 0 | V33: 0
B34: tot | C34: =SUM(C28:C33) -> 256 | D34: =SUM(D28:D33) -> 530 | E34: 371 | F34: 389 | G34: 191 | H34: 398 | I34: 378 | J34: 574 | K34: 354 | M34: tot | N34: =SUM(N28:N33) -> 310 | O34: =SUM(O28:O33) -> 151 | P34: 256 | Q34: 237 | R34: 179 | S34: 361 | T34: 445 | U34: 285 | V34: 226
B36: Mean | C36: =AVERAGE(C34:K34) -> 382.3333333 | M36: Mean | N36: =AVERAGE(N34:V34) -> 272.2222222
B37: STDEV | C37: =STDEV(C34:K34) -> 118.5063289 | M37: STDEV | N37: =STDEV(N34:V34) -> 91.06972298
B38: number | C38: =COUNT(C34:K34) -> 9 | M38: number | N38: =COUNT(N34:V34) -> 9
B39: SEM | C39: =C37/SQRT(C38) -> 39.50210965 | M39: SEM | N39: =N37/SQRT(N38) -> 30.35657433 | X39: ttest | Y39: =TTEST(C34:K34,N34:V34,2,2) -> 0.04200490533
A41: Serotonin
A42: 2µg/µl
A43: volume: 10µl
A44: injections:intradermal/calf
C46: GRP::wt_rosa26-iDTR | O46: GRP::Cre_rosa26-iDTR
B47: time | N47: time
B48: 0-5 | C48: 110 | D48: 66 | E48: 108 | F48: 65 | G48: 120 | H48: 71 | I48: 95 | J48: 129 | K48: 130 | L48: 149 | N48: 0-5 | O48: 51 | P48: 106 | Q48: 129 | R48: 16 | S48: 103 | T48: 132 | U48: 67 | V48: 101 | W48: 46 | X48: 90
B49: 5-10 | C49: 51 | D49: 82 | E49: 170 | F49: 132 | G49: 170 | H49: 197 | I49: 144 | J49: 78 | K49: 206 | L49: 113 | N49: 5-10 | O49: 137 | P49: 116 | Q49: 3 | R49: 39 | S49: 134 | T49: 85 | U49: 81 | V49: 161 | W49: 145 | X49: 111
B50: 10-15 | C50: 68 | D50: 12 | E50: 0 | F50: 104 | G50: 172 | H50: 94 | I50: 121 | J50: 140 | K50: 169 | L50: 118 | N50: 10-15 | O50: 127 | P50: 0 | Q50: 50 | R50: 0 | S50: 24 | T50: 0 | U50: 0 | V50: 74 | W50: 95 | X50: 55
B51: 15-20 | C51: 0 | D51: 78 | E51: 27 | F51: 52 | G51: 146 | H51: 0 | I51: 90 | J51: 50 | K51: 6 | L51: 80 | N51: 15-20 | O51: 46 | P51: 0 | Q51: 51 | R51: 97 | S51: 115 | T51: 0 | U51: 35 | V51: 7 | W51: 108 | X51: 0
B52: 20-25 | C52: 0 | D52: 10 | E52: 36 | F52: 58 | G52: 83 | H52: 0 | I52: 0 | J52: 193 | K52: 71 | L52: 25 | N52: 20-25 | O52: 48 | P52: 52 | Q52: 0 | R52: 0 | S52: 19 | T52: 0 | U52: 66 | V52: 113 | W52: 0 | X52: 0
B53: 25-30 | C53: 18 | D53: 0 | E53: 12 | F53: 59 | G53: 26 | H53: 0 | I53: 82 | J53: 69 | K53: 43 | L53: 0 | N53: 25-30 | O53: 0 | P53: 0 | Q53: 0 | R53: 1 | S53: 0 | T53: 0 | U53: 15 | V53: 78 | W53: 0 | X53: 0
B54: tot | C54: =SUM(C48:C53) -> 247 | D54: 248 | E54: 353 | F54: 470 | G54: 717 | H54: 362 | I54: 532 | J54: 659 | K54: 625 | L54: 485 | N54: tot | O54: =SUM(O48:O53) -> 409 | P54: =SUM(P48:P53) -> 274 | Q54: 233 | R54: 153 | S54: 395 | T54: 217 | U54: 264 | V54: 534 | W54: 394 | X54: 256
B56: Mean | C56: =AVERAGE(C54:L54) -> 469.8 | N56: Mean | O56: =AVERAGE(O54:X54) -> 312.9
B57: STDEV | C57: =STDEV(C54:L54) -> 166.3963141 | N57: STDEV | O57: =STDEV(O54:X54) -> 115.339547
B58: number | C58: =COUNT(C54:L54) -> 10 | N58: number | O58: =COUNT(O54:X54) -> 10
B59: SEM | C59: =C57/SQRT(C58) -> 52.61913467 | N59: SEM | O59: =O57/SQRT(O58) -> 36.47356729 | Z59: ttest | AA59: =TTEST(C54:L54,O54:X54,2,2) -> 0.02471092335
A61: SLIGRL
A62: 6.57µg/µl
A63: volume: 10µl
A64: injections:intradermal/calf
C66: GRP::wt_rosa26-iDTR | Q66: GRP::Cre_rosa26-iDTR
B67: time | P67: time
B68: 0-5 | C68: 27 | D68: 48 | E68: 21 | F68: 99 | G68: 133 | H68: 44 | I68: 88 | J68: 120 | K68: 91 | L68: 67 | M68: 40 | N68: 33 | P68: 0-5 | Q68: 6 | R68: 73 | S68: 61 | T68: 88 | U68: 78 | V68: 30 | W68: 51 | X68: 25 | Y68: 32
B69: 5-10 | C69: 78 | D69: 32 | E69: 165 | F69: 127 | G69: 177 | H69: 91 | I69: 62 | J69: 38 | K69: 120 | L69: 68 | M69: 7 | N69: 63 | P69: 5-10 | Q69: 105 | R69: 101 | S69: 70 | T69: 58 | U69: 99 | V69: 147 | W69: 36 | X69: 62 | Y69: 0
B70: 10-15 | C70: 101 | D70: 8 | E70: 88 | F70: 61 | G70: 105 | H70: 46 | I70: 66 | J70: 35 | K70: 54 | L70: 5 | M70: 47 | N70: 7 | P70: 10-15 | Q70: 62 | R70: 34 | S70: 55 | T70: 114 | U70: 0 | V70: 32 | W70: 15 | X70: 25 | Y70: 58
B71: 15-20 | C71: 6 | D71: 111 | E71: 0 | F71: 25 | G71: 0 | H71: 21 | I71: 11 | J71: 40 | K71: 6 | L71: 68 | M71: 46 | N71: 13 | P71: 15-20 | Q71: 37 | R71: 118 | S71: 53 | T71: 95 | U71: 0 | V71: 25 | W71: 122 | X71: 0 | Y71: 41
B72: 20-25 | C72: 2 | D72: 18 | E72: 12 | F72: 48 | G72: 44 | H72: 24 | I72: 17 | J72: 40 | K72: 77 | L72: 36 | M72: 16 | N72: 7 | P72: 20-25 | Q72: 54 | R72: 72 | S72: 64 | T72: 79 | U72: 42 | V72: 0 | W72: 21 | X72: 0 | Y72: 14
B73: 25-30 | C73: 36 | D73: 16 | E73: 54 | F73: 99 | G73: 16 | H73: 1 | I73: 3 | J73: 45 | K73: 53 | L73: 0 | M73: 15 | N73: 0 | P73: 25-30 | Q73: 39 | R73: 83 | S73: 110 | T73: 20 | U73: 124 | V73: 27 | W73: 146 | X73: 34 | Y73: 90
B74: tot | C74: =SUM(C68:C73) -> 250 | D74: =SUM(D68:D73) -> 233 | E74: 340 | F74: 459 | G74: 475 | H74: 227 | I74: 247 | J74: 318 | K74: 401 | L74: 244 | M74: 171 | N74: 123 | P74: tot | Q74: =SUM(Q68:Q73) -> 303 | R74: =SUM(R68:R73) -> 481 | S74: 413 | T74: 454 | U74: 343 | V74: 261 | W74: 391 | X74: 146 | Y74: 235
B76: Mean | C76: =AVERAGE(C74:N74) -> 290.6666667 | P76: Mean | Q76: =AVERAGE(Q74:Y74) -> 336.3333333
B77: STDEV | C77: =STDEV(C74:N74) -> 110.0490249 | P77: STDEV | Q77: =STDEV(Q74:Y74) -> 110.0942778
B78: number | C78: =COUNT(C74:N74) -> 12 | P78: number | Q78: =COUNT(Q74:Y74) -> 9
B79: SEM | C79: =C77/SQRT(C78) -> 31.76841707 | P79: SEM | Q79: =Q77/SQRT(Q78) -> 36.69809259 | AA79: ttest | AB79: =TTEST(C74:N74,Q74:Y74,2,2) -> 0.3585694666

Sheet Figure 4E-I
A1: LIGHT TOUCH
A3: Genotype | B3: tg | C3: wt | D3: tg | E3: wt | F3: wt | G3: wt | H3: wt | I3: tg | J3: wt | K3: tg | L3: tg | M3: wt | N3: tg | O3: wt | P3: tg
B5: 1 | C5: 1 | D5: 1 | E5: 1 | F5: 1 | G5: 1 | H5: 1 | I5: 1 | J5: 1 | K5: 1 | L5: 1 | M5: 1 | N5: 1 | O5: 1 | P5: 1
B6: 1 | C6: 1 | D6: 1 | E6: 1 | F6: 1 | G6: 1 | H6: 0 | I6: 1 | J6: 1 | K6: 1 | L6: 1 | M6: 0 | N6: 1 | O6: 1 | P6: 1
B7: 1 | C7: 1 | D7: 1 | E7: 1 | F7: 0 | G7: 1 | H7: 1 | I7: 1 | J7: 1 | K7: 1 | L7: 1 | M7: 1 | N7: 1 | O7: 1 | P7: 1
B8: 1 | C8: 1 | D8: 1 | E8: 0 | F8: 1 | G8: 1 | H8: 1 | I8: 1 | J8: 1 | K8: 1 | L8: 1 | M8: 1 | N8: 1 | O8: 1 | P8: 1
B9: 1 | C9: 1 | D9: 0 | E9: 0 | F9: 0 | G9: 1 | H9: 0 | I9: 1 | J9: 1 | K9: 1 | L9: 1 | M9: 1 | N9: 1 | O9: 1 | P9: 1
B10: 1 | C10: 1 | D10: 1 | E10: 0 | F10: 1 | G10: 1 | H10: 1 | I10: 1 | J10: 1 | K10: 1 | L10: 1 | M10: 1 | N10: 1 | O10: 1 | P10: 1
B11: 1 | C11: 1 | D11: 1 | E11: 1 | F11: 0 | G11: 1 | H11: 1 | I11: 1 | J11: 1 | K11: 1 | L11: 1 | M11: 1 | N11: 1 | O11: 1 | P11: 1
B12: 1 | C12: 1 | D12: 1 | E12: 0 | F12: 1 | G12: 1 | H12: 0 | I12: 1 | J12: 1 | K12: 1 | L12: 1 | M12: 0 | N12: 1 | O12: 1 | P12: 1
B13: 0 | C13: 1 | D13: 1 | E13: 1 | F13: 1 | G13: 1 | H13: 1 | I13: 1 | J13: 1 | K13: 1 | L13: 1 | M13: 1 | N13: 1 | O13: 1 | P13: 1
B14: 1 | C14: 1 | D14: 0 | E14: 0 | F14: 1 | G14: 1 | H14: 0 | I14: 1 | J14: 1 | K14: 1 | L14: 1 | M14: 1 | N14: 1 | O14: 0 | P14: 1
B15: =AVERAGE(B5:B14)*100 -> 90 | C15: =AVERAGE(C5:C14)*100 -> 100 | D15: 80 | E15: 50 | F15: 70 | G15: 100 | H15: 60 | I15: 100 | J15: 100 | K15: 100 | L15: 100 | M15: 80 | N15: 100 | O15: 90 | P15: 100
B17: Response 1 = YES; 0 = NO
M18: Average | N18: ST error | O18: ttest
B19: Cre - | C19: 100 | D19: 50 | E19: 70 | F19: 100 | G19: 60 | H19: 100 | I19: 80 | J19: 90 | M19: =AVERAGE(C19:J19) -> 81.25 | N19: =STDEV(C19:J19)/SQRT(8) -> 6.927558836
B20: Cre + | C20: 90 | D20: 80 | E20: 100 | F20: 100 | G20: 100 | H20: 100 | I20: 100 | M20: =AVERAGE(C20:I20) -> 95.71428571 | N20: =STDEV(C20:I20)/SQRT(7) -> 2.973808571 | O20: =TTEST(C19:J19,C20:I20,2,2) -> 0.09154419928
A24: VON FREY
A26: Genotype | B26: tg | C26: wt | D26: tg | E26: wt | F26: wt | G26: tg | H26: wt | I26: tg | J26: wt | K26: wt | L26: wt | M26: wt | N26: tg | O26: wt | P26: tg | Q26: tg | R26: wt | S26: tg | T26: wt | U26: tg
B28: 3.5 | C28: 3.8 | D28: 1.7 | E28: 4 | F28: 3 | G28: 4.1 | H28: 4 | I28: 4.9 | J28: 2.7 | K28: 0.4 | L28: 4.2 | M28: 4.5 | N28: 3.9 | O28: 5.4 | P28: 1.5 | Q28: 6 | R28: 6 | S28: 3.2 | T28: 3.4 | U28: 5.1
B29: 4.5 | C29: 2.7 | D29: 3.2 | E29: 3.8 | F29: 4.4 | G29: 3.5 | H29: 4.2 | I29: 4 | J29: 2.3 | K29: 5.5 | L29: 3.9 | M29: 4.6 | N29: 0.8 | O29: 2.9 | P29: 1.5 | Q29: 1.2 | R29: 4.2 | S29: 4.5 | T29: 4.3 | U29: 4.1
B30: 3.7 | C30: 5.2 | D30: 3.9 | E30: 4.5 | F30: 1.2 | G30: 2 | H30: 3.2 | I30: 3.8 | J30: 4.4 | K30: 3.8 | L30: 5.1 | M30: 5.8 | N30: 3.8 | O30: 4.4 | P30: 1.2 | Q30: 1.1 | R30: 5 | S30: 5.6 | T30: 0.3 | U30: 3.7
B31: 1 | C31: 4.5 | D31: 5.1 | E31: 3 | F31: 6 | G31: 1.6 | H31: 0.9 | I31: 3.8 | J31: 4.3 | K31: 5.2 | L31: 6 | M31: 4.7 | N31: 0.3 | O31: 5.1 | P31: 3.5 | Q31: 0.8 | R31: 2.4 | S31: 3 | T31: 6 | U31: 3.1
B32: 2.8 | C32: 2 | D32: 4 | E32: 2.5 | F32: 4.1 | G32: 4.3 | H32: 3.6 | I32: 1.4 | J32: 3.4 | K32: 3.7 | L32: 0.4 | M32: 5.7 | N32: 5.2 | O32: 0.2 | P32: 6 | Q32: 2.2 | R32: 4.1 | S32: 6 | T32: 3.2 | U32: 5.2
B33: 5 | C33: 5.3 | D33: 4.5 | E33: 2 | F33: 2.6 | G33: 4.6 | H33: 4.6 | I33: 4 | J33: 4.7 | K33: 2.8 | L33: 3.7 | M33: 5.8 | N33: 0.9 | O33: 0.5 | P33: 1.4 | Q33: 0.2 | R33: 6 | S33: 0.9 | T33: 5.9 | U33: 5.9
B34: 3.3 | C34: 3.8 | D34: 3.9 | E34: 3.1 | F34: 1.8 | G34: 4.2 | H34: 1.3 | I34: 4.1 | J34: 2.8 | K34: 3.1 | L34: 5.9 | M34: 6 | N34: 3.7 | O34: 0.5 | P34: 4.9 | Q34: 5.6 | R34: 6 | S34: 0.9 | T34: 5.2 | U34: 5.6
B35: 1.3 | C35: 5.1 | D35: 5.3 | E35: 4.5 | F35: 5 | G35: 4.6 | H35: 3.7 | I35: 3.4 | J35: 4.3 | K35: 1.7 | L35: 0.6 | M35: 4.6 | N35: 6 | O35: 2.7 | P35: 5.4 | Q35: 5.4 | R35: 5 | S35: 6 | T35: 0.5 | U35: 1.5
B36: =AVERAGE(B28:B35) -> 3.1375 | C36: 4.05 | D36: 3.95 | E36: 3.425 | F36: 3.5125 | G36: 3.6125 | H36: 3.1875 | I36: 3.675 | J36: 3.6125 | K36: 3.275 | L36: 3.725 | M36: 5.2125 | N36: 3.075 | O36: 2.7125 | P36: 3.175 | Q36: =AVERAGE(Q28:Q35) -> 2.8125 | R36: =AVERAGE(R28:R35) -> 4.8375 | S36: =AVERAGE(S28:S35) -> 3.7625 | T36: =AVERAGE(T28:T35) -> 3.6 | U36: 4.275
B38: Mechanical: Force (g)
O39: Average | P39: ST error | Q39: ttest
B40: Cre - | C40: 4.05 | D40: 3.425 | E40: 3.5125 | F40: 3.1875 | G40: 3.6125 | H40: 3.275 | I40: 3.725 | J40: 5.2125 | K40: 2.7125 | L40: 4.8375 | M40: 3.6 | O40: =AVERAGE(C40:M40) -> 3.740909091 | P40: =STDEV(C40:M40)/SQRT(11) -> 0.2181149282
B41: Cre + | C41: 3.1375 | D41: 3.95 | E41: 3.6125 | F41: 3.675 | G41: 3.075 | H41: 3.175 | I41: 2.8125 | J41: 3.7625 | K41: 4.275 | O41: =AVERAGE(C41:K41) -> 3.497222222 | P41: =STDEV(C41:K41)/SQRT(9) -> 0.1583576979 | Q41: =TTEST(C40:M40,C41:K41,2,2) -> 0.397347104
A45: PINPRICK
A47: Genotype | B47: tg | C47: wt | D47: tg | E47: wt | F47: wt | G47: wt | H47: wt | I47: tg | J47: wt | K47: tg | L47: tg | M47: wt | N47: tg | O47: wt | P47: tg
B49: 0 | C49: 1 | D49: 1 | E49: 1 | F49: 1 | G49: 1 | H49: 0 | I49: 1 | J49: 1 | K49: 1 | L49: 1 | M49: 1 | N49: 0 | O49: 1 | P49: 1
B50: 1 | C50: 1 | D50: 0 | E50: 1 | F50: 1 | G50: 1 | H50: 0 | I50: 1 | J50: 1 | K50: 1 | L50: 1 | M50: 1 | N50: 1 | O50: 1 | P50: 1
B51: 1 | C51: 1 | D51: 1 | E51: 0 | F51: 1 | G51: 1 | H51: 1 | I51: 1 | J51: 1 | K51: 1 | L51: 1 | M51: 1 | N51: 1 | O51: 1 | P51: 0
B52: 1 | C52: 1 | D52: 1 | E52: 1 | F52: 1 | G52: 1 | H52: 0 | I52: 1 | J52: 1 | K52: 1 | L52: 1 | M52: 1 | N52: 1 | O52: 0 | P52: 1
B53: 1 | C53: 0 | D53: 1 | E53: 1 | F53: 1 | G53: 1 | H53: 1 | I53: 1 | J53: 1 | K53: 1 | L53: 1 | M53: 1 | N53: 1 | O53: 1 | P53: 1
B54: 1 | C54: 1 | D54: 1 | E54: 0 | F54: 1 | G54: 1 | H54: 1 | I54: 1 | J54: 1 | K54: 1 | L54: 1 | M54: 1 | N54: 1 | O54: 1 | P54: 1
B55: 1 | C55: 1 | D55: 1 | E55: 0 | F55: 1 | G55: 1 | H55: 1 | I55: 1 | J55: 1 | K55: 1 | L55: 1 | M55: 1 | N55: 1 | O55: 1 | P55: 1
B56: 1 | C56: 1 | D56: 1 | E56: 0 | F56: 1 | G56: 1 | H56: 1 | I56: 1 | J56: 1 | K56: 1 | L56: 1 | M56: 1 | N56: 1 | O56: 1 | P56: 0
B57: 1 | C57: 1 | D57: 0 | E57: 1 | F57: 1 | G57: 1 | H57: 0 | I57: 1 | J57: 1 | K57: 1 | L57: 1 | M57: 1 | N57: 1 | O57: 1 | P57: 1
B58: 1 | C58: 1 | D58: 1 | E58: 1 | F58: 1 | G58: 1 | H58: 1 | I58: 1 | J58: 1 | K58: 1 | L58: 1 | M58: 1 | N58: 0 | O58: 1 | P58: 1
B59: =AVERAGE(B49:B58)*100 -> 90 | C59: =AVERAGE(C49:C58)*100 -> 90 | D59: 80 | E59: 60 | F59: 100 | G59: 100 | H59: 60 | I59: 100 | J59: 100 | K59: 100 | L59: 100 | M59: 100 | N59: 80 | O59: 90 | P59: 80
B61: Response 1 = YES; 0 = NO
M62: Average | N62: ST error | O62: ttest
B63: Cre - | C63: 90 | D63: 60 | E63: 100 | F63: 100 | G63: 60 | H63: 100 | I63: 100 | J63: 90 | M63: =AVERAGE(C63:J63) -> 87.5 | N63: =STDEV(C63:J63)/SQRT(8) -> 6.19619699
B64: Cre + | C64: 90 | D64: 80 | E64: 100 | F64: 100 | G64: 100 | H64: 80 | I64: 80 | M64: =AVERAGE(C64:I64) -> 90 | N64: =STDEV(C64:I64)/SQRT(7) -> 3.77964473 | O64: =TTEST(C63:J63,C64:I64,2,2) -> 0.7450933682
A68: Rotarod
A70: Genotype | B70: tg | C70: wt | D70: tg | E70: wt | F70: wt | G70: tg | H70: wt | I70: tg | J70: wt | K70: wt | L70: wt | M70: wt | N70: tg | O70: wt | P70: tg | Q70: tg | R70: wt | S70: tg | T70: wt | U70: tg
B72: 77 | C72: 50 | D72: 134 | E72: 123 | F72: 204 | G72: 157 | H72: 163 | I72: 157 | J72: 127 | K72: 44 | L72: 87 | M72: 123 | N72: 82 | O72: 156 | P72: 175 | Q72: 155 | R72: 71 | S72: 113 | T72: 146 | U72: 90
B73: 130 | C73: 108 | D73: 164 | E73: 149 | F73: 210 | G73: 171 | H73: 163 | I73: 144 | J73: 137 | K73: 37 | L73: 119 | M73: 152 | N73: 159 | O73: 157 | P73: 197 | Q73: 126 | R73: 88 | S73: 88 | T73: 153 | U73: 137
B74: 152 | C74: 115 | D74: 148 | E74: 134 | F74: 231 | G74: 176 | H74: 152 | I74: 139 | J74: 156 | K74: 40 | L74: 108 | M74: 129 | N74: 199 | O74: 185 | P74: 69 | Q74: 200 | R74: 98 | S74: 153 | T74: 167 | U74: 121
B75: 179 | C75: 79 | D75: 169 | E75: 146 | F75: 183 | G75: 144 | H75: 159 | I75: 143 | J75: 142 | K75: 31 | L75: 103 | M75: 186 | N75: 165 | O75: 184 | P75: 168 | Q75: 122 | R75: 111 | S75: 162 | T75: 190 | U75: 88
B76: 217 | C76: 113 | D76: 133 | E76: 153 | F76: 228 | G76: 191 | H76: 175 | I76: 136 | J76: 128 | K76: 91 | L76: 79 | M76: 163 | N76: 182 | O76: 129 | P76: 115 | Q76: 220 | R76: 114 | S76: 153 | T76: 186 | U76: 75
B77: =AVERAGE(B72:B76) -> 151 | C77: 93 | D77: 149.6 | E77: 141 | F77: 211.2 | G77: 167.8 | H77: 162.4 | I77: 143.8 | J77: 138 | K77: 48.6 | L77: 99.2 | M77: 150.6 | N77: 157.4 | O77: 162.2 | P77: 144.8 | Q77: 164.6 | R77: 96.4 | S77: 133.8 | T77: 168.4 | U77: 102.2
B79: Latency: Time (s)
O80: Average | P80: ST error | Q80: ttest
B81: Cre - | C81: 93 | D81: 141 | E81: 211.2 | F81: 162.4 | G81: 138 | H81: 48.6 | I81: 99.2 | J81: 150.6 | K81: 162.2 | L81: 96.4 | M81: 168.4 | O81: =AVERAGE(C81:M81) -> 133.7272727 | P81: =STDEV(C81:M81)/SQRT(11) -> 13.71253634
B82: Cre + | C82: 151 | D82: 149.6 | E82: 167.8 | F82: 143.8 | G82: 157.4 | H82: 144.8 | I82: 164.6 | J82: 133.8 | K82: 102.2 | O82: =AVERAGE(C82:K82) -> 146.1111111 | P82: =STDEV(C82:K82)/SQRT(9) -> 6.521938286 | Q82: =TTEST(C81:M81,C82:K82,2,2) -> 0.4579274725
A86: HARGREAVES
A88: Genotype | B88: tg | C88: wt | D88: tg | E88: wt | F88: wt | G88: tg | H88: wt | I88: tg | J88: wt | K88: wt | L88: wt | M88: wt | N88: tg | O88: wt | P88: tg | Q88: tg | R88: wt | S88: tg | T88: wt | U88: tg
B90: 17.8 | C90: 10.02 | D90: 7.64 | E90: 11.24 | F90: 14.6 | G90: 10.14 | H90: 32 | I90: 7.51 | J90: 16.61 | K90: 27.3 | L90: 19.89 | M90: 16.11 | N90: 14.85 | O90: 17.1 | P90: 21.42 | Q90: 15.55 | R90: 8.26 | S90: 18.28 | T90: 10.83 | U90: 14.87
B91: 8.54 | C91: 9.48 | D91: 4.48 | E91: 12.07 | F91: 17 | G91: 9.52 | H91: 12.27 | I91: 6.53 | J91: 13.7 | K91: 25.82 | L91: 22.37 | M91: 13.07 | N91: 14.11 | O91: 16.82 | P91: 32 | Q91: 10.04 | R91: 8.92 | S91: 11.89 | T91: 11.75 | U91: 6.25
B92: 26 | C92: 9.05 | D92: 14.64 | E92: 16.29 | F92: 11.09 | G92: 7.23 | H92: 4.52 | I92: 18.94 | J92: 20.03 | K92: 8.53 | L92: 11.04 | M92: 17.42 | N92: 19.87 | O92: 11.29 | P92: 22.84 | Q92: 10.25 | R92: 12.1 | S92: 28.57 | T92: 8.58 | U92: 12.49
B93: 10.17 | C93: 10.58 | D93: 9.71 | E93: 10.83 | F93: 11.98 | G93: 14.08 | H93: 18.86 | I93: 15.18 | J93: 20.99 | K93: 32 | L93: 22.63 | M93: 16.44 | N93: 12.3 | O93: 30.15 | P93: 16.09 | Q93: 3.75 | R93: 32 | S93: 14.86 | T93: 32 | U93: 15.29
B94: 13.4 | C94: 12.76 | D94: 8.51 | E94: 2.36 | F94: 18.9 | G94: 26.95 | H94: 32 | I94: 17.42 | J94: 14.56 | K94: 32 | L94: 16.56 | M94: 32 | N94: 22.18 | O94: 32 | P94: 13.13 | Q94: 10.11 | R94: 20.05 | S94: 17.59 | T94: 14.22 | U94: 13.32
B95: 27.75 | C95: 13.4 | D95: 11 | E95: 10.54 | F95: 18.2 | G95: 32 | H95: 9 | I95: 12.25 | J95: 17.91 | K95: 26.5 | L95: 30.4 | M95: 18.79 | N95: 11.5 | O95: 16.33 | P95: 24.3 | Q95: 8.93 | R95: 17.36 | S95: 16.88 | T95: 10.69 | U95: 23.04
B96: 13.77 | C96: 13.7 | D96: 7.89 | E96: 13.94 | F96: 14.52 | G96: 11.23 | H96: 20.82 | I96: 17.81 | J96: 10.51 | K96: 32 | L96: 18.39 | M96: 32 | N96: 16.51 | O96: 13.4 | P96: 16.9 | Q96: 8.29 | R96: 9 | S96: 18.37 | T96: 16.72 | U96: 10.01
B97: 25.38 | C97: 10.58 | D97: 10.83 | E97: 28.62 | F97: 14.35 | G97: 14.07 | H97: 9.81 | I97: 8.72 | J97: 32 | K97: 19.87 | L97: 21.93 | M97: 10.41 | N97: 24.54 | O97: 17.45 | P97: 32 | Q97: 6.03 | R97: 10.32 | S97: 17.08 | T97: 11.64 | U97: 13.25
B98: =AVERAGE(B90:B97) -> 17.85125 | C98: 11.19625 | D98: 9.3375 | E98: 13.23625 | F98: 15.08 | G98: 15.6525 | H98: 17.41 | I98: 13.045 | J98: 18.28875 | K98: 25.5025 | L98: 20.40125 | M98: 19.53 | N98: 16.9825 | O98: 19.3175 | P98: 22.335 | Q98: 9.11875 | R98: 14.75125 | S98: 17.94 | T98: 14.55375 | U98: 13.565
B100: Latency: Time (s)
P101: Average | Q101: ST error | R101: ttest
B102: Cre - | C102: 11.19625 | D102: 13.23625 | E102: 15.08 | F102: 17.41 | G102: 18.28875 | H102: 25.5025 | I102: 20.40125 | J102: 19.53 | K102: 19.3175 | L102: 14.75125 | M102: 14.55375 | P102: =AVERAGE(C102:M102) -> 17.20613636 | Q102: =STDEV(C102:M102)/SQRT(11) -> 1.204427515
B103: Cre + | C103: 17.85125 | D103: 9.3375 | E103: 15.6525 | F103: 13.045 | G103: 16.9825 | H103: 22.335 | I103: 9.11875 | J103: 17.94 | K103: 13.565 | P103: =AVERAGE(C103:K103) -> 15.09194444 | Q103: =STDEV(C103:K103)/SQRT(9) -> 1.430761685 | R103: =TTEST(C102:M102,C103:K103,2,2) -> 0.2696159014
A107: Cold Nociception
A109: Genotype | B109: tg | C109: wt | D109: tg | E109: wt | F109: wt | G109: tg | H109: wt | I109: tg | J109: wt | K109: wt | L109: wt | M109: wt | N109: tg | O109: wt | P109: tg | Q109: tg | R109: wt | S109: tg | T109: wt | U109: tg
B111: 6.95 | C111: 10.51 | D111: 9.5 | E111: 6.13 | F111: 6.38 | G111: 7.44 | H111: 11.21 | I111: 24 | J111: 9.05 | K111: 8.4 | L111: 6.75 | M111: 5.53 | N111: 6.62 | O111: 5.44 | P111: 7 | Q111: 7.06 | R111: 7.46 | S111: 17.76 | T111: 5.47 | U111: 7.53
B112: 5.86 | C112: 10.16 | D112: 7.8 | E112: 6.73 | F112: 6.3 | G112: 6.63 | H112: 6.58 | I112: 12.95 | J112: 13.8 | K112: 8.12 | L112: 10.54 | M112: 8.41 | N112: 5.63 | O112: 5.25 | P112: 9.44 | Q112: 7.66 | R112: 7.34 | S112: 5.37 | T112: 5.97 | U112: 5.78
B113: 7 | C113: 7.58 | D113: 5.2 | E113: 7.35 | F113: 6.86 | G113: 11.14 | H113: 7.65 | I113: 9.33 | J113: 9.83 | K113: 8.93 | L113: 8.97 | M113: 21.94 | N113: 4.71 | O113: 7.22 | P113: 7.21 | Q113: 12.06 | R113: 7.82 | S113: 7.44 | T113: 6.25 | U113: 10.75
B114: 8.13 | C114: 5.95 | D114: 9.23 | E114: 8.16 | F114: 9.16 | G114: 12.56 | H114: 7.51 | I114: 10 | J114: 8.18 | K114: 10.82 | L114: 7.37 | M114: 24 | N114: 8.19 | O114: 7.44 | P114: 14.16 | Q114: 8.28 | R114: 10.31 | S114: 5.59 | T114: 6.53 | U114: 17.82
B115: 6.91 | C115: 4.71 | D115: 10.38 | E115: 13.23 | F115: 11.38 | G115: 7.46 | H115: 7.68 | I115: 7.85 | J115: 7.15 | K115: 9.41 | L115: 8.87 | M115: 24 | N115: 7.78 | O115: 11.75 | P115: 9.19 | Q115: 13.1 | R115: 5.56 | S115: 4.06 | T115: 5.03 | U115: 8.35
B116: 4.88 | C116: 5.31 | D116: 9.28 | E116: 24 | F116: 22.7 | G116: 6.28 | H116: 8.1 | I116: 7.08 | J116: 7.13 | K116: 7.94 | L116: 11.84 | M116: 24 | N116: 8.44 | O116: 15.82 | P116: 7.41 | Q116: 15.63 | R116: 6.12 | S116: 6.09 | T116: 4.84 | U116: 9.09
B117: 7.36 | C117: 13.3 | D117: 6.76 | E117: 6.41 | F117: 24 | G117: 6.9 | H117: 6.8 | I117: 12.43 | J117: 6.76 | K117: 12.56 | L117: 6.5 | M117: 24 | N117: 12.65 | O117: 24 | P117: 7.78 | Q117: 8.25 | R117: 7.87 | S117: 5.68 | T117: 4.96 | U117: 5.75
B118: 4.78 | C118: 5.78 | D118: 4.81 | E118: 9.41 | F118: 4.36 | G118: 9.53 | H118: 15.5 | I118: 11.93 | J118: 11.9 | K118: 11.1 | L118: 11.56 | M118: 24 | N118: 6.81 | O118: 4.35 | P118: 24 | Q118: 7.75 | R118: 5.78 | S118: 6.68 | T118: 7.81 | U118: 5.91
B119: =AVERAGE(B111:B118) -> 6.48375 | C119: 7.9125 | D119: 7.87 | E119: 10.1775 | F119: 11.3925 | G119: 8.4925 | H119: 8.87875 | I119: 11.94625 | J119: 9.225 | K119: 9.66 | L119: 9.05 | M119: 19.485 | N119: 7.60375 | O119: 10.15875 | P119: 10.77375 | Q119: 9.97375 | R119: 7.2825 | S119: 7.33375 | T119: 5.8575 | U119: 8.8725
B121: Latency: Time (s)
P122: Average | Q122: ST error | R122: ttest
B123: Cre - | C123: 7.9125 | D123: 10.1775 | E123: 11.3925 | F123: 8.87875 | G123: 9.225 | H123: 9.66 | I123: 9.05 | J123: 19.485 | K123: 10.15875 | L123: 7.2825 | M123: 5.8575 | P123: =AVERAGE(C123:M123) -> 9.916363636 | Q123: =STDEV(C123:M123)/SQRT(11) -> 1.060286149
B124: Cre + | C124: 6.48375 | D124: 7.87 | E124: 8.4925 | F124: 11.94625 | G124: 7.60375 | H124: 10.77375 | I124: 9.97375 | J124: 7.33375 | K124: 8.8725 | P124: =AVERAGE(C124:K124) -> 8.816666667 | Q124: =STDEV(C124:K124)/SQRT(9) -> 0.5902023767 | R124: =TTEST(C123:M123,C124:K124,2,2) -> 0.4058807147

Sheet Figure 5C-F
A1: BASELINE BEFORE CNO
B3: tg | E3: wt | H3: tg | K3: wt | N3: wt | Q3: tg | T3: tg | AC3: tg | AF3: wt | AI3: wt | AL3: wt | AO3: tg | AR3: tg | AU3: tg | AX3: wt | BA3: tg | BD3: wt | BG3: wt | BJ3: tg | BM3: wt | BP3: wt | BS3: wt | BV3: tg
B5: 0-5 | C5: 11 | E5: 0-5 | F5: 6 | H5: 0-5 | I5: 0 | K5: 0-5 | L5: 0 | N5: 0-5 | O5: 0 | Q5: 0-5 | R5: 12 | T5: 0-5 | U5: 4 | AC5: 0-5 | AD5: 14 | AF5: 0-5 | AG5: 4 | AI5: 0-5 | AJ5: 5 | AL5: 0-5 | AM5: 13 | AO5: 0-5 | AP5: 21 | AR5: 0-5 | AS5: 1 | AU5: 0-5 | AV5: 6 | AX5: 0-5 | AY5: 17 | BA5: 0-5 | BB5: 4 | BD5: 0-5 | BE5: 21 | BG5: 0-5 | BH5: 6 | BJ5: 0-5 | BK5: 48 | BM5: 0-5 | BN5: 11 | BP5: 0-5 | BQ5: 5 | BS5: 0-5 | BT5: 13 | BV5: 0-5 | BW5: 0
B6: 5-10 | C6: 3 | E6: 5-10 | F6: 17 | H6: 5-10 | I6: 0 | K6: 5-10 | L6: 0 | N6: 5-10 | O6: 1 | Q6: 5-10 | R6: 4 | T6: 5-10 | U6: 1 | AC6: 5-10 | AD6: 12 | AF6: 5-10 | AG6: 0 | AI6: 5-10 | AJ6: 21 | AL6: 5-10 | AM6: 3 | AO6: 5-10 | AP6: 7 | AR6: 5-10 | AS6: 0 | AU6: 5-10 | AV6: 6 | AX6: 5-10 | AY6: 51 | BA6: 5-10 | BB6: 23 | BD6: 5-10 | BE6: 12 | BG6: 5-10 | BH6: 16 | BJ6: 5-10 | BK6: 10 | BM6: 5-10 | BN6: 0 | BP6: 5-10 | BQ6: 2 | BS6: 5-10 | BT6: 5 | BV6: 5-10 | BW6: 1
B7: 10-15 | C7: 5 | E7: 10-15 | F7: 26 | H7: 10-15 | I7: 0 | K7: 10-15 | L7: 0 | N7: 10-15 | O7: 1 | Q7: 10-15 | R7: 0 | T7: 10-15 | U7: 4 | AC7: 10-15 | AD7: 0 | AF7: 10-15 | AG7: 0 | AI7: 10-15 | AJ7: 2 | AL7: 10-15 | AM7: 0 | AO7: 10-15 | AP7: 17 | AR7: 10-15 | AS7: 6 | AU7: 10-15 | AV7: 9 | AX7: 10-15 | AY7: 0 | BA7: 10-15 | BB7: 2 | BD7: 10-15 | BE7: 12 | BG7: 10-15 | BH7: 0 | BJ7: 10-15 | BK7: 3 | BM7: 10-15 | BN7: 20 | BP7: 10-15 | BQ7: 3 | BS7: 10-15 | BT7: 5 | BV7: 10-15 | BW7: 6
B8: 15-20 | C8: 1 | E8: 15-20 | F8: 22 | H8: 15-20 | I8: 1 | K8: 15-20 | L8: 0 | N8: 15-20 | O8: 0 | Q8: 15-20 | R8: 0 | T8: 15-20 | U8: 0 | AC8: 15-20 | AD8: 1 | AF8: 15-20 | AG8: 0 | AI8: 15-20 | AJ8: 16 | AL8: 15-20 | AM8: 3 | AO8: 15-20 | AP8: 9 | AR8: 15-20 | AS8: 0 | AU8: 15-20 | AV8: 20 | AX8: 15-20 | AY8: 0 | BA8: 15-20 | BB8: 0 | BD8: 15-20 | BE8: 0 | BG8: 15-20 | BH8: 33 | BJ8: 15-20 | BK8: 18 | BM8: 15-20 | BN8: 9 | BP8: 15-20 | BQ8: 12 | BS8: 15-20 | BT8: 0 | BV8: 15-20 | BW8: 0
B9: 20-25 | C9: 3 | E9: 20-25 | F9: 5 | H9: 20-25 | I9: 33 | K9: 20-25 | L9: 0 | N9: 20-25 | O9: 9 | Q9: 20-25 | R9: 0 | T9: 20-25 | U9: 0 | AC9: 20-25 | AD9: 4 | AF9: 20-25 | AG9: 0 | AI9: 20-25 | AJ9: 14 | AL9: 20-25 | AM9: 0 | AO9: 20-25 | AP9: 1 | AR9: 20-25 | AS9: 0 | AU9: 20-25 | AV9: 19 | AX9: 20-25 | AY9: 0 | BA9: 20-25 | BB9: 0 | BD9: 20-25 | BE9: 0 | BG9: 20-25 | BH9: 0 | BJ9: 20-25 | BK9: 0 | BM9: 20-25 | BN9: 1 | BP9: 20-25 | BQ9: 1 | BS9: 20-25 | BT9: 10 | BV9: 20-25 | BW9: 2
B10: 25-30 | C10: 6 | E10: 25-30 | F10: 0 | H10: 25-30 | I10: 0 | K10: 25-30 | L10: 0 | N10: 25-30 | O10: 0 | Q10: 25-30 | R10: 2 | T10: 25-30 | U10: 0 | AC10: 25-30 | AD10: 0 | AF10: 25-30 | AG10: 0 | AI10: 25-30 | AJ10: 0 | AL10: 25-30 | AM10: 0 | AO10: 25-30 | AP10: 0 | AR10: 25-30 | AS10: 0 | AU10: 25-30 | AV10: 0 | AX10: 25-30 | AY10: 0 | BA10: 25-30 | BB10: 0 | BD10: 25-30 | BE10: 0 | BG10: 25-30 | BH10: 18 | BJ10: 25-30 | BK10: 0 | BM10: 25-30 | BN10: 1 | BP10: 25-30 | BQ10: 0 | BS10: 25-30 | BT10: 7 | BV10: 25-30 | BW10: 0
B12: TOT | C12: =SUM(C5:C10) -> 29 | E12: TOT | F12: =SUM(F5:F10) -> 76 | H12: TOT | I12: =SUM(I5:I10) -> 34 | K12: TOT | L12: =SUM(L5:L10) -> 0 | N12: TOT | O12: =SUM(O5:O10) -> 11 | Q12: TOT | R12: =SUM(R5:R10) -> 18 | T12: TOT | U12: =SUM(U5:U10) -> 9 | AC12: TOT | AD12: =SUM(AD5:AD10) -> 31 | AF12: TOT | AG12: =SUM(AG5:AG10) -> 4 | AI12: TOT | AJ12: =SUM(AJ5:AJ10) -> 58 | AL12: TOT | AM12: =SUM(AM5:AM10) -> 19 | AO12: TOT | AP12: =SUM(AP5:AP10) -> 55 | AR12: TOT | AS12: =SUM(AS5:AS10) -> 7 | AU12: TOT | AV12: =SUM(AV5:AV10) -> 60 | AX12: TOT | AY12: =SUM(AY5:AY10) -> 68 | BA12: TOT | BB12: =SUM(BB5:BB10) -> 29 | BD12: TOT | BE12: =SUM(BE5:BE10) -> 45 | BG12: TOT | BH12: =SUM(BH5:BH10) -> 73 | BJ12: TOT | BK12: =SUM(BK5:BK10) -> 79 | BM12: TOT | BN12: =SUM(BN5:BN10) -> 42 | BP12: TOT | BQ12: =SUM(BQ5:BQ10) -> 23 | BS12: TOT | BT12: =SUM(BT5:BT10) -> 40 | BV12: TOT | BW12: =SUM(BW5:BW10) -> 9
A14: CNO ITCH
AF16: wt | AI16: wt | AL16: wt | AO16: tg | AR16: tg | AU16: tg | AX16: wt | BA16: tg | BD16: wt | BG16: wt | BJ16: tg | BM16: wt | BP16: wt | BS16: wt | BV16: tg
AF18: 0-5 | AG18: 0 | AI18: 0-5 | AJ18: 26 | AL18: 0-5 | AM18: 0 | AO18: 0-5 | AP18: 125 | AR18: 0-5 | AS18: 40 | AU18: 0-5 | AV18: 42 | AX18: 0-5 | AY18: 4 | BA18: 0-5 | BB18: 78 | BD18: 0-5 | BE18: 4 | BG18: 0-5 | BH18: 7 | BJ18: 0-5 | BK18: 61 | BM18: 0-5 | BN18: 0 | BP18: 0-5 | BQ18: 2 | BS18: 0-5 | BT18: 13 | BV18: 0-5 | BW18: 32
AF19: 5-10 | AG19: 0 | AI19: 5-10 | AJ19: 49 | AL19: 5-10 | AM19: 0 | AO19: 5-10 | AP19: 54 | AR19: 5-10 | AS19: 87 | AU19: 5-10 | AV19: 11 | AX19: 5-10 | AY19: 0 | BA19: 5-10 | BB19: 94 | BD19: 5-10 | BE19: 10 | BG19: 5-10 | BH19: 0 | BJ19: 5-10 | BK19: 4 | BM19: 5-10 | BN19: 0 | BP19: 5-10 | BQ19: 0 | BS19: 5-10 | BT19: 5 | BV19: 5-10 | BW19: 66
AF20: 10-15 | AG20: 0 | AI20: 10-15 | AJ20: 0 | AL20: 10-15 | AM20: 0 | AO20: 10-15 | AP20: 47 | AR20: 10-15 | AS20: 71 | AU20: 10-15 | AV20: 54 | AX20: 10-15 | AY20: 0 | BA20: 10-15 | BB20: 1 | BD20: 10-15 | BE20: 0 | BG20: 10-15 | BH20: 0 | BJ20: 10-15 | BK20: 0 | BM20: 10-15 | BN20: 0 | BP20: 10-15 | BQ20: 0 | BS20: 10-15 | BT20: 5 | BV20: 10-15 | BW20: 7
AF21: 15-20 | AG21: 0 | AI21: 15-20 | AJ21: 0 | AL21: 15-20 | AM21: 0 | AO21: 15-20 | AP21: 0 | AR21: 15-20 | AS21: 127 | AU21: 15-20 | AV21: 105 | AX21: 15-20 | AY21: 0 | BA21: 15-20 | BB21: 0 | BD21: 15-20 | BE21: 0 | BG21: 15-20 | BH21: 3 | BJ21: 15-20 | BK21: 0 | BM21: 15-20 | BN21: 0 | BP21: 15-20 | BQ21: 0 | BS21: 15-20 | BT21: 0 | BV21: 15-20 | BW21: 31
AF22: 20-25 | AG22: 0 | AI22: 20-25 | AJ22: 0 | AL22: 20-25 | AM22: 0 | AO22: 20-25 | AP22: 0 | AR22: 20-25 | AS22: 0 | AU22: 20-25 | AV22: 6 | AX22: 20-25 | AY22: 0 | BA22: 20-25 | BB22: 0 | BD22: 20-25 | BE22: 0 | BG22: 20-25 | BH22: 0 | BJ22: 20-25 | BK22: 0 | BM22: 20-25 | BN22: 0 | BP22: 20-25 | BQ22: 0 | BS22: 20-25 | BT22: 10 | BV22: 20-25 | BW22: 19
AF23: 25-30 | AG23: 0 | AI23: 25-30 | AJ23: 0 | AL23: 25-30 | AM23: 0 | AO23: 25-30 | AP23: 0 | AR23: 25-30 | AS23: 0 | AU23: 25-30 | AV23: 0 | AX23: 25-30 | AY23: 0 | BA23: 25-30 | BB23: 0 | BD23: 25-30 | BE23: 0 | BG23: 25-30 | BH23: 4 | BJ23: 25-30 | BK23: 6 | BM23: 25-30 | BN23: 0 | BP23: 25-30 | BQ23: 0 | BS23: 25-30 | BT23: 7 | BV23: 25-30 | BW23: 1
AF24: 30-35 | AG24: 0 | AI24: 30-35 | AJ24: 0 | AL24: 30-35 | AM24: 23 | AO24: 30-35 | AP24: 0 | AR24: 30-35 | AS24: 0 | AU24: 30-35 | AV24: 0 | AX24: 30-35 | AY24: 0 | BA24: 30-35 | BB24: 0 | BD24: 30-35 | BE24: 0 | BG24: 30-35 | BH24: 0 | BJ24: 30-35 | BK24: 0 | BM24: 30-35 | BN24: 0 | BP24: 30-35 | BQ24: 0 | BS24: 30-35 | BT24: 0 | BV24: 30-35 | BW24: 0
AF25: 35-40 | AG25: 0 | AI25: 35-40 | AJ25: 0 | AL25: 35-40 | AM25: 9 | AO25: 35-40 | AP25: 1 | AR25: 35-40 | AS25: 0 | AU25: 35-40 | AV25: 0 | AX25: 35-40 | AY25: 0 | BA25: 35-40 | BB25: 0 | BD25: 35-40 | BE25: 0 | BG25: 35-40 | BH25: 0 | BJ25: 35-40 | BK25: 0 | BM25: 35-40 | BN25: 0 | BP25: 35-40 | BQ25: 0 | BS25: 35-40 | BT25: 0 | BV25: 35-40 | BW25: 0
AF26: 40-45 | AG26: 0 | AI26: 40-45 | AJ26: 0 | AL26: 40-45 | AM26: 28 | AO26: 40-45 | AP26: 0 | AR26: 40-45 | AS26: 0 | AU26: 40-45 | AV26: 0 | AX26: 40-45 | AY26: 0 | BA26: 40-45 | BB26: 0 | BD26: 40-45 | BE26: 0 | BG26: 40-45 | BH26: 0 | BJ26: 40-45 | BK26: 0 | BM26: 40-45 | BN26: 0 | BP26: 40-45 | BQ26: 0 | BS26: 40-45 | BT26: 0 | BV26: 40-45 | BW26: 0
AF28: TOT 0-30 | AG28: =SUM(AG18:AG23) -> 0 | AI28: TOT 0-30 | AJ28: =SUM(AJ18:AJ23) -> 75 | AL28: TOT 0-30 | AM28: =SUM(AM18:AM23) -> 0 | AO28: TOT 0-30 | AP28: =SUM(AP18:AP23) -> 226 | AR28: TOT 0-30 | AS28: =SUM(AS18:AS23) -> 325 | AU28: TOT 0-30 | AV28: =SUM(AV18:AV23) -> 218 | AX28: TOT 0-30 | AY28: =SUM(AY18:AY23) -> 4 | BA28: TOT 0-30 | BB28: =SUM(BB18:BB23) -> 173 | BD28: TOT 0-30 | BE28: =SUM(BE18:BE23) -> 14 | BG28: TOT 0-30 | BH28: =SUM(BH18:BH23) -> 14 | BJ28: TOT 0-30 | BK28: =SUM(BK18:BK23) -> 71 | BM28: TOT 0-30 | BN28: =SUM(BN18:BN23) -> 0 | BP28: TOT 0-30 | BQ28: =SUM(BQ18:BQ23) -> 2 | BS28: TOT 0-30 | BT28: =SUM(BT18:BT23) -> 40 | BV28: TOT 0-30 | BW28: =SUM(BW18:BW23) -> 156
A30: HISTAMIN ITCH +CNO
B32: tg | E32: wt | H32: tg | K32: wt | N32: wt | Q32: tg | T32: tg | AC32: tg | AF32: wt | AI32: wt | AL32: wt | AO32: tg | AR32: tg | AU32: tg | AX32: wt | BA32: tg | BD32: wt | BG32: wt | BJ32: tg | BM32: wt | BP32: wt | BS32: wt | BV32: tg
B34: 0-5 | C34: 65 | E34: 0-5 | F34: 33 | H34: 0-5 | I34: 74 | K34: 0-5 | L34: 68 | N34: 0-5 | O34: 129 | Q34: 0-5 | R34: 74 | T34: 0-5 | U34: 54 | AC34: 0-5 | AD34: 114 | AF34: 0-5 | AG34: 36 | AI34: 0-5 | AJ34: 29 | AL34: 0-5 | AM34: 36 | AO34: 0-5 | AP34: 72 | AR34: 0-5 | AS34: 110 | AU34: 0-5 | AV34: 31 | AX34: 0-5 | AY34: 104 | BA34: 0-5 | BB34: 107 | BD34: 0-5 | BE34: 105 | BG34: 0-5 | BH34: 20 | BJ34: 0-5 | BK34: 56 | BM34: 0-5 | BN34: 91 | BP34: 0-5 | BQ34: 35 | BS34: 0-5 | BT34: 27 | BV34: 0-5 | BW34: 35
B35: 5-10 | C35: 193 | E35: 5-10 | F35: 23 | H35: 5-10 | I35: 155 | K35: 5-10 | L35: 78 | N35: 5-10 | O35: 117 | Q35: 5-10 | R35: 93 | T35: 5-10 | U35: 35 | AC35: 5-10 | AD35: 157 | AF35: 5-10 | AG35: 14 | AI35: 5-10 | AJ35: 46 | AL35: 5-10 | AM35: 56 | AO35: 5-10 | AP35: 173 | AR35: 5-10 | AS35: 160 | AU35: 5-10 | AV35: 76 | AX35: 5-10 | AY35: 148 | BA35: 5-10 | BB35: 72 | BD35: 5-10 | BE35: 48 | BG35: 5-10 | BH35: 62 | BJ35: 5-10 | BK35: 48 | BM35: 5-10 | BN35: 88 | BP35: 5-10 | BQ35: 170 | BS35: 5-10 | BT35: 19 | BV35: 5-10 | BW35: 32
B36: 10-15 | C36: 41 | E36: 10-15 | F36: 163 | H36: 10-15 | I36: 87 | K36: 10-15 | L36: 0 | N36: 10-15 | O36: 37 | Q36: 10-15 | R36: 57 | T36: 10-15 | U36: 6 | AC36: 10-15 | AD36: 35 | AF36: 10-15 | AG36: 0 | AI36: 10-15 | AJ36: 40 | AL36: 10-15 | AM36: 0 | AO36: 10-15 | AP36: 207 | AR36: 10-15 | AS36: 109 | AU36: 10-15 | AV36: 32 | AX36: 10-15 | AY36: 69 | BA36: 10-15 | BB36: 40 | BD36: 10-15 | BE36: 0 | BG36: 10-15 | BH36: 60 | BJ36: 10-15 | BK36: 19 | BM36: 10-15 | BN36: 0 | BP36: 10-15 | BQ36: 90 | BS36: 10-15 | BT36: 8 | BV36: 10-15 | BW36: 21
B37: 15-20 | C37: 3 | E37: 15-20 | F37: 3 | H37: 15-20 | I37: 63 | K37: 15-20 | L37: 0 | N37: 15-20 | O37: 0 | Q37: 15-20 | R37: 23 | T37: 15-20 | U37: 35 | AC37: 15-20 | AD37: 0 | AF37: 15-20 | AG37: 0 | AI37: 15-20 | AJ37: 0 | AL37: 15-20 | AM37: 0 | AO37: 15-20 | AP37: 104 | AR37: 15-20 | AS37: 5 | AU37: 15-20 | AV37: 8 | AX37: 15-20 | AY37: 0 | BA37: 15-20 | BB37: 33 | BD37: 15-20 | BE37: 158 | BG37: 15-20 | BH37: 21 | BJ37: 15-20 | BK37: 7 | BM37: 15-20 | BN37: 0 | BP37: 15-20 | BQ37: 0 | BS37: 15-20 | BT37: 0 | BV37: 15-20 | BW37: 14
B38: 20-25 | C38: 0 | E38: 20-25 | F38: 0 | H38: 20-25 | I38: 5 | K38: 20-25 | L38: 0 | N38: 20-25 | O38: 0 | Q38: 20-25 | R38: 21 | T38: 20-25 | U38: 139 | AC38: 20-25 | AD38: 50 | AF38: 20-25 | AG38: 0 | AI38: 20-25 | AJ38: 0 | AL38: 20-25 | AM38: 0 | AO38: 20-25 | AP38: 73 | AR38: 20-25 | AS38: 91 | AU38: 20-25 | AV38: 7 | AX38: 20-25 | AY38: 0 | BA38: 20-25 | BB38: 54 | BD38: 20-25 | BE38: 33 | BG38: 20-25 | BH38: 0 | BJ38: 20-25 | BK38: 17 | BM38: 20-25 | BN38: 0 | BP38: 20-25 | BQ38: 0 | BS38: 20-25 | BT38: 0 | BV38: 20-25 | BW38: 6
B39: 25-30 | C39: 39 | E39: 25-30 | F39: 0 | H39: 25-30 | I39: 227 | K39: 25-30 | L39: 0 | N39: 25-30 | O39: 0 | Q39: 25-30 | R39: 42 | T39: 25-30 | U39: 0 | AC39: 25-30 | AD39: 185 | AF39: 25-30 | AG39: 0 | AI39: 25-30 | AJ39: 0 | AL39: 25-30 | AM39: 0 | AO39: 25-30 | AP39: 22 | AR39: 25-30 | AS39: 35 | AU39: 25-30 | AV39: 4 | AX39: 25-30 | AY39: 0 | BA39: 25-30 | BB39: 22 | BD39: 25-30 | BE39: 0 | BG39: 25-30 | BH39: 0 | BJ39: 25-30 | BK39: 1 | BM39: 25-30 | BN39: 0 | BP39: 25-30 | BQ39: 0 | BS39: 25-30 | BT39: 0 | BV39: 25-30 | BW39: 0
B41: TOT | C41: =SUM(C34:C39) -> 341 | E41: TOT | F41: =SUM(F34:F39) -> 222 | H41: TOT | I41: =SUM(I34:I39) -> 611 | K41: TOT | L41: =SUM(L34:L39) -> 146 | N41: TOT | O41: =SUM(O34:O39) -> 283 | Q41: TOT | R41: =SUM(R34:R39) -> 310 | T41: TOT | U41: =SUM(U34:U39) -> 269 | AC41: TOT | AD41: =SUM(AD34:AD39) -> 541 | AF41: TOT | AG41: =SUM(AG34:AG39) -> 50 | AI41: TOT | AJ41: =SUM(AJ34:AJ39) -> 115 | AL41: TOT | AM41: =SUM(AM34:AM39) -> 92 | AO41: TOT | AP41: =SUM(AP34:AP39) -> 651 | AR41: TOT | AS41: =SUM(AS34:AS39) -> 510 | AU41: TOT | AV41: =SUM(AV34:AV39) -> 158 | AX41: TOT | AY41: =SUM(AY34:AY39) -> 321 | BA41: TOT | BB41: =SUM(BB34:BB39) -> 328 | BD41: TOT | BE41: =SUM(BE34:BE39) -> 344 | BG41: TOT | BH41: =SUM(BH34:BH39) -> 163 | BJ41: TOT | BK41: =SUM(BK34:BK39) -> 148 | BM41: TOT | BN41: =SUM(BN34:BN39) -> 179 | BP41: TOT | BQ41: =SUM(BQ34:BQ39) -> 295 | BS41: TOT | BT41: =SUM(BT34:BT39) -> 54 | BV41: TOT | BW41: =SUM(BW34:BW39) -> 108
A44: CQ ITCH + CNO
B46: tg | E46: wt | H46: tg | K46: wt | N46: wt | Q46: tg | T46: tg | W46: wt | Z46: wt | AC46: tg | AF46: wt | AI46: wt | AL46: wt | AO46: tg | AR46: tg | AU46: tg | AX46: wt | BA46: tg | BD46: wt | BG46: wt | BJ46: tg | BM46: wt | BP46: wt | BS46: wt | BV46: tg
B48: 0-5 | C48: 37 | E48: 0-5 | F48: 6 | H48: 0-5 | I48: 143 | K48: 0-5 | L48: 51 | N48: 0-5 | O48: 30 | Q48: 0-5 | R48: 94 | T48: 0-5 | U48: 72 | W48: 0-5 | X48: 18 | Z48: 0-5 | AA48: 90 | AC48: 0-5 | AD48: 75 | AF48: 0-5 | AG48: 25 | AI48: 0-5 | AJ48: 21 | AL48: 0-5 | AM48: 53 | AO48: 0-5 | AP48: 136 | AR48: 0-5 | AS48: 96 | AU48: 0-5 | AV48: 67 | AX48: 0-5 | AY48: 55 | BA48: 0-5 | BB48: 90 | BD48: 0-5 | BE48: 43 | BG48: 0-5 | BH48: 30 | BJ48: 0-5 | BK48: 113 | BM48: 0-5 | BN48: 44 | BP48: 0-5 | BQ48: 49 | BS48: 0-5 | BT48: 56 | BV48: 0-5 | BW48: 64
B49: 5-10 | C49: 13 | E49: 5-10 | F49: 1 | H49: 5-10 | I49: 60 | K49: 5-10 | L49: 72 | N49: 5-10 | O49: 45 | Q49: 5-10 | R49: 106 | T49: 5-10 | U49: 57 | W49: 5-10 | X49: 51 | Z49: 5-10 | AA49: 114 | AC49: 5-10 | AD49: 24 | AF49: 5-10 | AG49: 37 | AI49: 5-10 | AJ49: 43 | AL49: 5-10 | AM49: 9 | AO49: 5-10 | AP49: 60 | AR49: 5-10 | AS49: 108 | AU49: 5-10 | AV49: 43 | AX49: 5-10 | AY49: 113 | BA49: 5-10 | BB49: 93 | BD49: 5-10 | BE49: 0 | BG49: 5-10 | BH49: 53 | BJ49: 5-10 | BK49: 121 | BM49: 5-10 | BN49: 25 | BP49: 5-10 | BQ49: 1 | BS49: 5-10 | BT49: 66 | BV49: 5-10 | BW49: 50
B50: 10-15 | C50: 70 | E50: 10-15 | F50: 3 | H50: 10-15 | I50: 55 | K50: 10-15 | L50: 0 | N50: 10-15 | O50: 45 | Q50: 10-15 | R50: 109 | T50: 10-15 | U50: 12 | W50: 10-15 | X50: 30 | Z50: 10-15 | AA50: 62 | AC50: 10-15 | AD50: 25 | AF50: 10-15 | AG50: 40 | AI50: 10-15 | AJ50: 67 | AL50: 10-15 | AM50: 0 | AO50: 10-15 | AP50: 118 | AR50: 10-15 | AS50: 143 | AU50: 10-15 | AV50: 124 | AX50: 10-15 | AY50: 8 | BA50: 10-15 | BB50: 49 | BD50: 10-15 | BE50: 36 | BG50: 10-15 | BH50: 38 | BJ50: 10-15 | BK50: 24 | BM50: 10-15 | BN50: 8 | BP50: 10-15 | BQ50: 0 | BS50: 10-15 | BT50: 82 | BV50: 10-15 | BW50: 4
B51: 15-20 | C51: 8 | E51: 15-20 | F51: 7 | H51: 15-20 | I51: 104 | K51: 15-20 | L51: 0 | N51: 15-20 | O51: 2 | Q51: 15-20 | R51: 32 | T51: 15-20 | U51: 15 | W51: 15-20 | X51: 0 | Z51: 15-20 | AA51: 7 | AC51: 15-20 | AD51: 5 | AF51: 15-20 | AG51: 2 | AI51: 15-20 | AJ51: 0 | AL51: 15-20 | AM51: 0 | AO51: 15-20 | AP51: 47 | AR51: 15-20 | AS51: 0 | AU51: 15-20 | AV51: 68 | AX51: 15-20 | AY51: 4 | BA51: 15-20 | BB51: 56 | BD51: 15-20 | BE51: 0 | BG51: 15-20 | BH51: 97 | BJ51: 15-20 | BK51: 2 | BM51: 15-20 | BN51: 0 | BP51: 15-20 | BQ51: 37 | BS51: 15-20 | BT51: 36 | BV51: 15-20 | BW51: 73
B52: 20-25 | C52: 0 | E52: 20-25 | F52: 2 | H52: 20-25 | I52: 36 | K52: 20-25 | L52: 0 | N52: 20-25 | O52: 0 | Q52: 20-25 | R52: 0 | T52: 20-25 | U52: 0 | W52: 20-25 | X52: 0 | Z52: 20-25 | AA52: 0 | AC52: 20-25 | AD52: 0 | AF52: 20-25 | AG52: 0 | AI52: 20-25 | AJ52: 0 | AL52: 20-25 | AM52: 0 | AO52: 20-25 | AP52: 7 | AR52: 20-25 | AS52: 0 | AU52: 20-25 | AV52: 7 | AX52: 20-25 | AY52: 0 | BA52: 20-25 | BB52: 3 | BD52: 20-25 | BE52: 0 | BG52: 20-25 | BH52: 0 | BJ52: 20-25 | BK52: 0 | BM52: 20-25 | BN52: 0 | BP52: 20-25 | BQ52: 26 | BS52: 20-25 | BT52: 5 | BV52: 20-25 | BW52: 0
B53: 25-30 | C53: 0 | E53: 25-30 | F53: 2 | H53: 25-30 | I53: 19 | K53: 25-30 | L53: 0 | N53: 25-30 | O53: 0 | Q53: 25-30 | R53: 0 | T53: 25-30 | U53: 0 | W53: 25-30 | X53: 0 | Z53: 25-30 | AA53: 12 | AC53: 25-30 | AD53: 0 | AF53: 25-30 | AG53: 0 | AI53: 25-30 | AJ53: 0 | AL53: 25-30 | AM53: 0 | AO53: 25-30 | AP53: 4 | AR53: 25-30 | AS53: 0 | AU53: 25-30 | AV53: 5 | AX53: 25-30 | AY53: 2 | BA53: 25-30 | BB53: 1 | BD53: 25-30 | BE53: 0 | BG53: 25-30 | BH53: 0 | BJ53: 25-30 | BK53: 0 | BM53: 25-30 | BN53: 0 | BP53: 25-30 | BQ53: 0 | BS53: 25-30 | BT53: 22 | BV53: 25-30 | BW53: 14
B55: TOT | C55: =SUM(C48:C53) -> 128 | E55: TOT | F55: =SUM(F48:F53) -> 21 | H55: TOT | I55: =SUM(I48:I53) -> 417 | K55: TOT | L55: =SUM(L48:L53) -> 123 | N55: TOT | O55: =SUM(O48:O53) -> 122 | Q55: TOT | R55: =SUM(R48:R53) -> 341 | T55: TOT | U55: =SUM(U48:U53) -> 156 | W55: TOT | X55: =SUM(X48:X53) -> 99 | Z55: TOT | AA55: =SUM(AA48:AA53) -> 285 | AC55: TOT | AD55: =SUM(AD48:AD53) -> 129 | AF55: TOT | AG55: =SUM(AG48:AG53) -> 104 | AI55: TOT | AJ55: =SUM(AJ48:AJ53) -> 131 | AL55: TOT | AM55: =SUM(AM48:AM53) -> 62 | AO55: TOT | AP55: =SUM(AP48:AP53) -> 372 | AR55: TOT | AS55: =SUM(AS48:AS53) -> 347 | AU55: TOT | AV55: =SUM(AV48:AV53) -> 314 | AX55: TOT | AY55: =SUM(AY48:AY53) -> 182 | BA55: TOT | BB55: =SUM(BB48:BB53) -> 292 | BD55: TOT | BE55: =SUM(BE48:BE53) -> 79 | BG55: TOT | BH55: =SUM(BH48:BH53) -> 218 | BJ55: TOT | BK55: =SUM(BK48:BK53) -> 260 | BM55: TOT | BN55: =SUM(BN48:BN53) -> 77 | BP55: TOT | BQ55: =SUM(BQ48:BQ53) -> 113 | BS55: TOT | BT55: =SUM(BT48:BT53) -> 267 | BV55: TOT | BW55: =SUM(BW48:BW53) -> 205
A59: BASELINE BEFORE CNO | Q59: Average | R59: SD | S59: Number | T59: SE | V59: ttest
A60: Cre + | B60: 34 | C60: 29 | D60: 18 | E60: 9 | F60: 31 | G60: 55 | H60: 7 | I60: 60 | J60: 29 | K60: 79 | L60: 9 | Q60: =AVERAGE(B60:O60) -> 32.72727273 | R60: =STDEV(B60:O60) -> 23.27698825 | S60: =COUNT(B60:O60) -> 11 | T60: =R60/SQRT(S60) -> 7.018276024
A61: Cre - | B61: 0 | C61: 76 | D61: 11 | E61: 4 | F61: 58 | G61: 19 | H61: 68 | I61: 45 | J61: 73 | K61: 42 | L61: 23 | M61: 40 | Q61: =AVERAGE(B61:O61) -> 38.25 | R61: =STDEV(B61:O61) -> 26.88739144 | S61: =COUNT(B61:O61) -> 12 | T61: =R61/SQRT(S61) -> 7.761721341 | V61: =TTEST(B60:O60,B61:O61,2,2) -> 0.6055326418
A64: CNO ITCH | Q64: Average | R64: SD | S64: Number | T64: SE | V64: ttest
A65: Cre + | B65: 226 | C65: 325 | D65: 218 | E65: 173 | F65: 71 | G65: 156 | Q65: =AVERAGE(B65:O65) -> 194.8333333 | R65: =STDEV(B65:O65) -> 84.58230705 | S65: =COUNT(B65:O65) -> 6 | T65: =R65/SQRT(S65) -> 34.53058226
A66: Cre - | B66: 0 | C66: 75 | D66: 0 | E66: 4 | F66: 14 | G66: 14 | H66: 0 | I66: 2 | J66: 40 | Q66: =AVERAGE(B66:O66) -> 16.55555556 | R66: =STDEV(B66:O66) -> 25.42199398 | S66: =COUNT(B66:O66) -> 9 | T66: =R66/SQRT(S66) -> 8.473997992 | V66: =TTEST(B65:O65,B66:O66,2,2) -> 4.251155486e-05
A69: HISTAMINE ITCH + CNO | Q69: Average | R69: SD | S69: Number | T69: SE | V69: ttest
A70: Cre + | B70: 611 | C70: 341 | D70: 310 | E70: 269 | F70: 541 | G70: 651 | H70: 510 | I70: 158 | J70: 328 | K70: 148 | L70: 108 | Q70: =AVERAGE(B70:O70) -> 361.3636364 | R70: =STDEV(B70:O70) -> 190.8770666 | S70: =COUNT(B70:O70) -> 11 | T70: =R70/SQRT(S70) -> 57.55160099
A71: Cre - | B71: 146 | C71: 222 | D71: 283 | E71: 50 | F71: 115 | G71: 92 | H71: 321 | I71: 344 | J71: 163 | K71: 179 | L71: 295 | M71: 54 | Q71: =AVERAGE(B71:O71) -> 188.6666667 | R71: =STDEV(B71:O71) -> 103.4252768 | S71: =COUNT(B71:O71) -> 12 | T71: =R71/SQRT(S71) -> 29.8563057 | V71: =TTEST(B70:O70,B71:O71,2,2) -> 0.01252288752
A74: CQ ITCH + CNO | Q74: Average | R74: SD | S74: Number | T74: SE | V74: ttest
A75: Cre + | B75: 417 | C75: 128 | D75: 341 | E75: 156 | F75: 129 | G75: 372 | H75: 347 | I75: 314 | J75: 292 | K75: 260 | L75: 205 | Q75: =AVERAGE(B75:O75) -> 269.1818182 | R75: =STDEV(B75:O75) -> 101.3714143 | S75: =COUNT(B75:O75) -> 11 | T75: =R75/SQRT(S75) -> 30.56463143
A76: Cre - | B76: 123 | C76: 21 | D76: 122 | E76: 99 | F76: 285 | G76: 104 | H76: 131 | I76: 62 | J76: 182 | K76: 79 | L76: 218 | M76: 77 | N76: 113 | O76: 267 | Q76: =AVERAGE(B76:O76) -> 134.5 | R76: =STDEV(B76:O76) -> 76.91828831 | S76: =COUNT(B76:O76) -> 14 | T76: =R76/SQRT(S76) -> 20.55727726 | V76: =TTEST(B75:O75,B76:O76,2,2) -> 0.0009652034226

Sheet Figure 5G-K
A1: LIGHT TOUCH
A3: Genotype | B3: tg | C3: wt | D3: tg | E3: wt | F3: wt | G3: tg | H3: tg | I3: wt | J3: wt | K3: tg | L3: wt | M3: wt | N3: wt | O3: tg | P3: tg | Q3: tg | R3: wt | S3: tg | T3: wt
B5: 1 | C5: 1 | D5: 1 | E5: 1 | F5: 1 | G5: 1 | H5: 0 | I5: 0 | J5: 1 | K5: 1 | L5: 0 | M5: 1 | N5: 0 | O5: 1 | P5: 1 | Q5: 1 | R5: 1 | S5: 1 | T5: 1
B6: 0 | C6: 1 | D6: 1 | E6: 0 | F6: 1 | G6: 0 | H6: 1 | I6: 1 | J6: 1 | K6: 1 | L6: 1 | M6: 1 | N6: 0 | O6: 1 | P6: 1 | Q6: 1 | R6: 1 | S6: 1 | T6: 1
B7: 0 | C7: 1 | D7: 1 | E7: 1 | F7: 1 | G7: 1 | H7: 1 | I7: 0 | J7: 1 | K7: 1 | L7: 1 | M7: 0 | N7: 0 | O7: 1 | P7: 1 | Q7: 0 | R7: 1 | S7: 1 | T7: 1
B8: 1 | C8: 1 | D8: 1 | E8: 1 | F8: 1 | G8: 1 | H8: 1 | I8: 0 | J8: 0 | K8: 1 | L8: 1 | M8: 0 | N8: 1 | O8: 1 | P8: 1 | Q8: 0 | R8: 1 | S8: 1 | T8: 1
B9: 0 | C9: 1 | D9: 1 | E9: 1 | F9: 1 | G9: 0 | H9: 0 | I9: 1 | J9: 1 | K9: 1 | L9: 1 | M9: 0 | N9: 1 | O9: 1 | P9: 1 | Q9: 1 | R9: 1 | S9: 1 | T9: 1
B10: 0 | C10: 1 | D10: 1 | E10: 1 | F10: 1 | G10: 1 | H10: 1 | I10: 0 | J10: 1 | K10: 1 | L10: 0 | M10: 1 | N10: 0 | O10: 1 | P10: 1 | Q10: 1 | R10: 1 | S10: 1 | T10: 1
B11: 1 | C11: 1 | D11: 1 | E11: 1 | F11: 1 | G11: 1 | H11: 1 | I11: 1 | J11: 1 | K11: 1 | L11: 0 | M11: 1 | N11: 1 | O11: 1 | P11: 1 | Q11: 1 | R11: 1 | S11: 1 | T11: 1
B12: 1 | C12: 1 | D12: 1 | E12: 0 | F12: 1 | G12: 1 | H12: 0 | I12: 0 | J12: 1 | K12: 1 | L12: 1 | M12: 1 | N12: 0 | O12: 0 | P12: 1 | Q12: 1 | R12: 1 | S12: 1 | T12: 1
B13: 1 | C13: 1 | D13: 1 | E13: 1 | F13: 1 | G13: 1 | H13: 0 | I13: 0 | J13: 1 | K13: 1 | L13: 1 | M13: 1 | N13: 0 | O13: 1 | P13: 1 | Q13: 1 | R13: 1 | S13: 1 | T13: 1
B14: 0 | C14: 1 | D14: 1 | E14: 1 | F14: 1 | G14: 1 | H14: 1 | I14: 1 | J14: 1 | K14: 1 | L14: 1 | M14: 1 | N14: 0 | O14: 1 | P14: 1 | Q14: 1 | R14: 1 | S14: 1 | T14: 1
B15: =AVERAGE(B5:B14)*100 -> 50 | C15: =AVERAGE(C5:C14)*100 -> 100 | D15: 100 | E15: 80 | F15: 100 | G15: 80 | H15: 60 | I15: 40 | J15: 90 | K15: 100 | L15: 70 | M15: 70 | N15: 30 | O15: 90 | P15: 100 | Q15: 80 | R15: 100 | S15: 100 | T15: 100
B17: Response 1 = YES; 0 = NO
Q18: Avarage | R18: number | S18: st error | T18: ttest
B19: Cre - | C19: 100 | D19: 80 | E19: 100 | F19: 40 | G19: 90 | H19: 70 | I19: 70 | J19: 30 | K19: 100 | L19: 100 | Q19: =AVERAGE(C19:L19) -> 78 | R19: =COUNT(C19:O19) -> 10 | S19: =STDEV(C19:L19)/SQRT(10) -> 8.137703744
B20: Cre + | C20: 50 | D20: 100 | E20: 80 | F20: 60 | G20: 100 | H20: 90 | I20: 100 | J20: 80 | K20: 100 | Q20: =AVERAGE(C20:K20) -> 84.44444444 | R20: =COUNT(C20:O20) -> 9 | S20: =STDEV(C20:K20)/SQRT(9) -> 6.26079315 | T20: =TTEST(C19:L19,C20:K20,2,2) -> 0.5453490757
A24: VON FREY
A26: Genotype | B26: tg | C26: wt | D26: tg | E26: wt | F26: wt | G26: tg | H26: tg | I26: wt | J26: wt | K26: tg | L26: wt | M26: wt | N26: wt | O26: tg | P26: tg | Q26: tg | R26: wt | S26: tg | T26: wt
B28: 4.1 | C28: 3.7 | D28: 6 | E28: 5.2 | F28: 5.9 | G28: 6 | H28: 5 | I28: 6 | J28: 4.7 | K28: 6 | L28: 2.4 | M28: 2.7 | N28: 3.7 | O28: 1.9 | P28: 1.5 | Q28: 2.4 | R28: 3.3 | S28: 3.2 | T28: 2.7
B29: 6 | C29: 6 | D29: 5.2 | E29: 6 | F29: 1.8 | G29: 6 | H29: 1 | I29: 4.9 | J29: 5.4 | K29: 4.6 | L29: 3.2 | M29: 2.9 | N29: 4.2 | O29: 2.5 | P29: 0.4 | Q29: 3.3 | R29: 0.6 | S29: 0.4 | T29: 4.5
B30: 4.7 | C30: 4.4 | D30: 5 | E30: 6 | F30: 6 | G30: 4.7 | H30: 6 | I30: 5 | J30: 4.5 | K30: 4.3 | L30: 5.3 | M30: 3.9 | N30: 3.8 | O30: 2.3 | P30: 1.3 | Q30: 3.2 | R30: 4 | S30: 1.3 | T30: 4.4
B31: 6 | C31: 6 | D31: 4 | E31: 6 | F31: 3.9 | G31: 6 | H31: 6 | I31: 4.6 | J31: 6 | K31: 6 | L31: 5.5 | M31: 5.7 | N31: 4.8 | O31: 3.7 | P31: 4 | Q31: 3.8 | R31: 5.6 | S31: 3.3 | T31: 4.1
B32: 6 | C32: 6 | D32: 6 | E32: 5.5 | F32: 5.1 | G32: 6 | H32: 6 | I32: 5.2 | J32: 6 | K32: 0.7 | L32: 6 | M32: 0.6 | N32: 3.9 | O32: 5.1 | P32: 5.9 | Q32: 2.9 | R32: 2.6 | S32: 2.3 | T32: 3.6
B33: 6 | C33: 6 | D33: 5 | E33: 6 | F33: 3.3 | G33: 4.9 | H33: 2.9 | I33: 5.1 | J33: 3.1 | K33: 6 | L33: 5.6 | M33: 4.5 | N33: 5.3 | O33: 2.1 | P33: 4.4 | Q33: 0.4 | R33: 3.2 | S33: 3.9 | T33: 1
B34: 6 | C34: 6 | D34: 4.2 | E34: 6 | F34: 4.6 | G34: 2.6 | H34: 4.1 | I34: 5.3 | J34: 6 | K34: 2.5 | L34: 6 | M34: 0.6 | N34: 3.7 | O34: 1.1 | P34: 1.5 | Q34: 3.4 | R34: 4.6 | S34: 3.4 | T34: 4.7
B35: 3.1 | C35: 6 | D35: 5 | E35: 6 | F35: 5.7 | G35: 4.9 | H35: 2.9 | I35: 5 | J35: 3.7 | K35: 1.3 | L35: 1.4 | M35: 4.9 | N35: 4.6 | O35: 4.8 | P35: 6 | Q35: 3.4 | R35: 6 | S35: 2.3 | T35: 5
B36: =AVERAGE(B28:B35) -> 5.2375 | C36: 5.5125 | D36: 5.05 | E36: 5.8375 | F36: 4.5375 | G36: 5.1375 | H36: 4.2375 | I36: 5.1375 | J36: 4.925 | K36: 3.925 | L36: 4.425 | M36: 3.225 | N36: =AVERAGE(N28:N35) -> 4.25 | O36: =AVERAGE(O28:O35) -> 2.9375 | P36: =AVERAGE(P28:P35) -> 3.125 | Q36: =AVERAGE(Q28:Q35) -> 2.85 | R36: =AVERAGE(R28:R35) -> 3.7375 | S36: =AVERAGE(S28:S35) -> 2.5125 | T36: =AVERAGE(T28:T35) -> 3.75
B38: Mechanical: Force (g)
Q39: Avarage | R39: number | S39: st error | T39: ttest
B40: Cre - | C40: 5.5125 | D40: 5.8375 | E40: 4.5375 | F40: 5.1375 | G40: 4.925 | H40: 4.425 | I40: 3.225 | J40: 4.25 | K40: 3.7375 | L40: 3.75 | Q40: =AVERAGE(C40:L40) -> 4.53375 | R40: =COUNT(C40:O40) -> 10 | S40: =STDEV(C40:L40)/SQRT(10) -> 0.2630750975
B41: Cre + | C41: 5.2375 | D41: 5.05 | E41: 5.1375 | F41: 4.2375 | G41: 3.925 | H41: 2.9375 | I41: 3.125 | J41: 2.85 | K41: 2.5125 | Q41: =AVERAGE(C41:K41) -> 3.890277778 | R41: =COUNT(C41:O41) -> 9 | S41: =STDEV(C41:K41)/SQRT(9) -> 0.3596136151 | T41: =TTEST(C40:L40,C41:K41,2,2) -> 0.1612285321
A45: PINPRICK
A47: Genotype | B47: wt | C47: tg | D47: tg | E47: tg | F47: tg | G47: tg | H47: wt | I47: wt | J47: wt | K47: wt | L47: wt | M47: tg | N47: wt | O47: tg | P47: tg | Q47: tg | R47: wt | S47: wt | T47: tg | U47: wt | V47: tg | W47: wt | X47: wt | Y47: tg
B49: 0 | C49: 1 | D49: 1 | E49: 1 | F49: 1 | G49: 1 | H49: 1 | I49: 1 | J49: 1 | K49: 0 | L49: 0 | M49: 1 | N49: 1 | O49: 1 | P49: 1 | Q49: 1 | R49: 1 | S49: 1 | T49: 0 | U49: 1 | V49: 0 | W49: 0 | X49: 1 | Y49: 1
B50: 1 | C50: 1 | D50: 1 | E50: 1 | F50: 1 | G50: 1 | H50: 1 | I50: 1 | J50: 1 | K50: 1 | L50: 1 | M50: 1 | N50: 1 | O50: 1 | P50: 1 | Q50: 1 | R50: 1 | S50: 1 | T50: 1 | U50: 0 | V50: 0 | W50: 1 | X50: 1 | Y50: 1
B51: 1 | C51: 1 | D51: 1 | E51: 1 | F51: 1 | G51: 0 | H51: 1 | I51: 1 | J51: 1 | K51: 0 | L51: 1 | M51: 1 | N51: 1 | O51: 1 | P51: 1 | Q51: 1 | R51: 1 | S51: 1 | T51: 1 | U51: 1 | V51: 1 | W51: 1 | X51: 1 | Y51: 1
B52: 1 | C52: 0 | D52: 1 | E52: 1 | F52: 1 | G52: 1 | H52: 0 | I52: 1 | J52: 1 | K52: 1 | L52: 1 | M52: 1 | N52: 1 | O52: 1 | P52: 0 | Q52: 1 | R52: 1 | S52: 1 | T52: 1 | U52: 1 | V52: 1 | W52: 1 | X52: 1 | Y52: 1
B53: 1 | C53: 1 | D53: 1 | E53: 1 | F53: 1 | G53: 1 | H53: 1 | I53: 1 | J53: 1 | K53: 0 | L53: 1 | M53: 1 | N53: 1 | O53: 1 | P53: 1 | Q53: 1 | R53: 1 | S53: 1 | T53: 1 | U53: 1 | V53: 1 | W53: 1 | X53: 1 | Y53: 1
B54: 1 | C54: 1 | D54: 1 | E54: 1 | F54: 1 | G54: 1 | H54: 1 | I54: 1 | J54: 1 | K54: 0 | L54: 1 | M54: 1 | N54: 1 | O54: 1 | P54: 1 | Q54: 1 | R54: 1 | S54: 1 | T54: 1 | U54: 1 | V54: 1 | W54: 1 | X54: 1 | Y54: 1
B55: 1 | C55: 1 | D55: 1 | E55: 1 | F55: 1 | G55: 1 | H55: 1 | I55: 1 | J55: 1 | K55: 0 | L55: 1 | M55: 1 | N55: 1 | O55: 1 | P55: 1 | Q55: 1 | R55: 1 | S55: 1 | T55: 1 | U55: 1 | V55: 1 | W55: 1 | X55: 1 | Y55: 1
B56: 1 | C56: 1 | D56: 1 | E56: 1 | F56: 1 | G56: 1 | H56: 1 | I56: 1 | J56: 1 | K56: 0 | L56: 1 | M56: 1 | N56: 1 | O56: 1 | P56: 0 | Q56: 1 | R56: 1 | S56: 1 | T56: 1 | U56: 0 | V56: 1 | W56: 1 | X56: 1 | Y56: 1
B57: 1 | C57: 1 | D57: 1 | E57: 1 | F57: 1 | G57: 1 | H57: 1 | I57: 1 | J57: 1 | K57: 0 | L57: 1 | M57: 1 | N57: 1 | O57: 1 | P57: 1 | Q57: 1 | R57: 1 | S57: 1 | T57: 1 | U57: 1 | V57: 1 | W57: 1 | X57: 1 | Y57: 1
B58: 1 | C58: 1 | D58: 1 | E58: 1 | F58: 1 | G58: 1 | H58: 1 | I58: 1 | J58: 1 | K58: 1 | L58: 1 | M58: 1 | N58: 1 | O58: 1 | P58: 0 | Q58: 1 | R58: 1 | S58: 1 | T58: 1 | U58: 1 | V58: 0 | W58: 1 | X58: 1 | Y58: 1
B59: =AVERAGE(B49:B58)*100 -> 90 | C59: =AVERAGE(C49:C58)*100 -> 90 | D59: 100 | E59: 100 | F59: 100 | G59: 90 | H59: 90 | I59: 100 | J59: 100 | K59: 30 | L59: 90 | M59: 100 | N59: 100 | O59: 100 | P59: 70 | Q59: 100 | R59: 100 | S59: 100 | T59: 90 | U59: 80 | V59: 70 | W59: 90 | X59: 100 | Y59: 100
B61: Response 1 = YES; 0 = NO
Q62: Avarage | R62: number | S62: st error | T62: ttest
B63: Cre - | C63: 90 | D63: 90 | E63: 100 | F63: 100 | G63: 30 | H63: 90 | I63: 100 | J63: 100 | K63: 100 | L63: 80 | M63: 90 | N63: 100 | Q63: =AVERAGE(C63:N63) -> 89.16666667 | R63: =COUNT(C63:O63) -> 12 | S63: =STDEV(C63:N63)/SQRT(12) -> 5.701984414
B64: Cre + | C64: 90 | D64: 100 | E64: 100 | F64: 100 | G64: 90 | H64: 100 | I64: 100 | J64: 70 | K64: 100 | L64: 90 | M64: 70 | N64: 100 | Q64: =AVERAGE(C64:N64) -> 92.5 | R64: =COUNT(C64:O64) -> 12 | S64: =STDEV(C64:N64)/SQRT(12) -> 3.285643703 | T64: =TTEST(C63:N63,C64:N64,2,2) -> 0.6175323746
A68: Rotarod
A70: Genotype | B70: tg | C70: wt | D70: tg | E70: wt | F70: wt | G70: tg | H70: tg | I70: wt | J70: wt | K70: tg | L70: wt | M70: wt | N70: wt | O70: tg | P70: tg | Q70: tg | R70: wt | S70: tg | T70: wt
B73: 92 | C73: 64 | D73: 76 | E73: 30 | F73: 97 | G73: 115 | H73: 120 | I73: 223 | J73: 67 | K73: 196 | L73: 157 | M73: 55 | N73: 112 | O73: 92 | P73: 148 | Q73: 149 | R73: 136 | S73: 106 | T73: 70
B74: 84 | C74: 46 | D74: 78 | E74: 46 | F74: 74 | G74: 103 | H74: 101 | I74: 177 | J74: 120 | K74: 162 | L74: 138 | M74: 70 | N74: 84 | O74: 57 | P74: 135 | Q74: 159 | R74: 131 | S74: 161 | T74: 44
B75: 104 | C75: 57 | D75: 84 | E75: 113 | F75: 95 | G75: 49 | H75: 38 | I75: 193 | J75: 100 | K75: 127 | L75: 147 | M75: 93 | N75: 125 | O75: 146 | P75: 179 | Q75: 161 | R75: 214 | S75: 121 | T75: 115
B76: 132 | C76: 26 | D76: 84 | E76: 66 | F76: 92 | G76: 76 | H76: 107 | I76: 177 | J76: 129 | K76: 154 | L76: 143 | M76: 88 | N76: 75 | O76: 156 | P76: 148 | Q76: 143 | R76: 112 | S76: 202 | T76: 117
B77: 148 | C77: 79 | D77: 83 | E77: 31 | F77: 21 | G77: 95 | H77: 139 | I77: 109 | J77: 127 | K77: 156 | L77: 121 | M77: 48 | N77: 108 | O77: 195 | P77: 150 | Q77: 194 | R77: 195 | S77: 189 | T77: 105
B78: =AVERAGE(B73:B77) -> 112 | C78: 54.4 | D78: 81 | E78: 57.2 | F78: 75.8 | G78: 87.6 | H78: 101 | I78: 175.8 | J78: 108.6 | K78: 159 | L78: 141.2 | M78: 70.8 | N78: 100.8 | O78: 129.2 | P78: 152 | Q78: 161.2 | R78: 157.6 | S78: 155.8 | T78: 90.2
B80: Latency: Time (s)
Q81: Avarage | R81: number | S81: st error | T81: ttest
B82: Cre - | C82: 54.4 | D82: 57.2 | E82: 75.8 | F82: 175.8 | G82: 108.6 | H82: 141.2 | I82: 70.8 | J82: 100.8 | K82: 157.6 | L82: 90.2 | Q82: =AVERAGE(C82:L82) -> 103.24 | R82: =COUNT(C82:O82) -> 10 | S82: =STDEV(C82:L82)/SQRT(10) -> 13.40645947
B83: Cre + | C83: 112 | D83: 81 | E83: 87.6 | F83: 101 | G83: 159 | H83: 129.2 | I83: 152 | J83: 161.2 | K83: 155.8 | Q83: =AVERAGE(C83:K83) -> 126.5333333 | R83: =COUNT(C83:O83) -> 9 | S83: =STDEV(C83:K83)/SQRT(9) -> 10.68508826 | T83: =TTEST(C82:L82,C83:K83,2,2) -> 0.1984391645
A87: HARGREAVES
A89: Genotype | B89: wt | C89: tg | D89: tg | E89: tg | F89: tg | G89: tg | H89: wt | I89: wt | J89: wt | K89: wt | L89: wt | M89: tg | N89: wt | O89: tg | P89: tg | Q89: tg | R89: wt | S89: wt | T89: tg | U89: wt | V89: tg | W89: wt | X89: wt | Y89: tg
B91: 15.68 | C91: 24.8 | D91: 18.94 | E91: 4.24 | F91: 23.16 | G91: 11.19 | H91: 32 | I91: 5.49 | J91: 17.05 | K91: 21.24 | L91: 32 | M91: 32 | N91: 4.31 | O91: 22.81 | P91: 12.27 | Q91: 9.69 | R91: 4.37 | S91: 32 | T91: 15.35 | U91: 32 | V91: 29.11 | W91: 10.03 | X91: 13.3 | Y91: 6.93
B92: 7.79 | C92: 32 | D92: 32 | E92: 15.21 | F92: 6.18 | G92: 11.84 | H92: 32 | I92: 11.78 | J92: 32 | K92: 32 | L92: 32 | M92: 20.53 | N92: 5.84 | O92: 32 | P92: 13.58 | Q92: 27.37 | R92: 32 | S92: 32 | T92: 13.82 | U92: 32 | V92: 20.65 | W92: 17.72 | X92: 32 | Y92: 32
B93: 15.73 | C93: 32 | D93: 32 | E93: 25.17 | F93: 25.83 | G93: 10.64 | H93: 19.7 | I93: 8.91 | J93: 32 | K93: 14.47 | L93: 20.01 | M93: 13.19 | N93: 12.73 | O93: 29.4 | P93: 13.47 | Q93: 32 | R93: 5.77 | S93: 32 | T93: 32 | U93: 32 | V93: 32 | W93: 24.22 | X93: 32 | Y93: 26.9
B94: 5.83 | C94: 16.69 | D94: 18.02 | E94: 16 | F94: 14.34 | G94: 32 | H94: 29.48 | I94: 32 | J94: 32 | K94: 32 | L94: 32 | M94: 22.73 | N94: 5.74 | O94: 9.41 | P94: 18.02 | Q94: 12.8 | R94: 32 | S94: 32 | T94: 32 | U94: 32 | V94: 32 | W94: 20.01 | X94: 32 | Y94: 32
B95: 13.95 | C95: 12.36 | D95: 21.43 | E95: 22.86 | F95: 22.71 | G95: 8.03 | H95: 16.88 | I95: 32 | J95: 32 | K95: 24.33 | L95: 32 | M95: 32 | N95: 5.01 | O95: 32 | P95: 12.42 | Q95: 4.96 | R95: 32 | S95: 32 | T95: 12.78 | U95: 32 | V95: 32 | W95: 25.01 | X95: 20.73 | Y95: 9.4
B96: 7.79 | C96: 32 | D96: 32 | E96: 32 | F96: 28.23 | G96: 5.99 | H96: 32 | I96: 32 | J96: 13.95 | K96: 32 | L96: 26.6 | M96: 13.62 | N96: 16.68 | O96: 32 | P96: 13.68 | Q96: 6.12 | R96: 32 | S96: 32 | T96: 11.74 | U96: 32 | V96: 6.94 | W96: 32 | X96: 32 | Y96: 16.6
B97: 27.95 | C97: 32 | D97: 32 | E97: 32 | F97: 19.13 | G97: 8.99 | H97: 18.63 | I97: 32 | J97: 8.51 | K97: 32 | L97: 32 | M97: 13.01 | N97: 21.23 | O97: 23.9 | P97: 7.51 | Q97: 20.74 | R97: 8.78 | S97: 32 | T97: 11.96 | U97: 32 | V97: 7.94 | W97: 32 | X97: 32 | Y97: 18.17
B98: 9.48 | C98: 21.11 | D98: 32 | E98: 21.8 | F98: 21.75 | G98: 12.61 | H98: 18.91 | I98: 17.78 | J98: 32 | K98: 27.89 | L98: 32 | M98: 27.18 | N98: 2.89 | O98: 10.6 | P98: 13.71 | Q98: 29.45 | R98: 32 | S98: 32 | T98: 32 | U98: 32 | V98: 30.93 | W98: 29.73 | X98: 32 | Y98: 32
B99: =AVERAGE(B91:B98) -> 13.025 | C99: 25.37 | D99: 27.29875 | E99: 21.16 | F99: 20.16625 | G99: 12.66125 | H99: 24.95 | I99: 21.495 | J99: 24.93875 | K99: 26.99125 | L99: 29.82625 | M99: 21.7825 | N99: 9.30375 | O99: 24.015 | P99: 13.0825 | Q99: 17.89125 | R99: 22.365 | S99: 32 | T99: 20.20625 | U99: 32 | V99: 23.94625 | W99: 23.84 | X99: 28.25375 | Y99: 21.75
B101: Latency: Time (s)
Q102: Avarage | R102: number | S102: st error | T102: ttest
B103: Cre - | C103: 13.025 | D103: 24.95 | E103: 21.495 | F103: 24.93875 | G103: 26.99125 | H103: 29.82625 | I103: 9.30375 | J103: 22.365 | K103: 32 | L103: 32 | M103: 23.84 | N103: 28.25375 | Q103: =AVERAGE(C103:N103) -> 24.08239583 | R103: =COUNT(C103:O103) -> 12 | S103: =STDEV(C103:N103)/SQRT(12) -> 2.015270635
B104: Cre + | C104: 25.37 | D104: 27.29875 | E104: 21.16 | F104: 20.16625 | G104: 12.66125 | H104: 21.7825 | I104: 24.015 | J104: 13.0825 | K104: 17.89125 | L104: 20.20625 | M104: 23.94625 | N104: 21.75 | Q104: =AVERAGE(C104:N104) -> 20.7775 | R104: =COUNT(C104:O104) -> 12 | S104: =STDEV(C104:N104)/SQRT(12) -> 1.292047821 | T104: =TTEST(C103:N103,C104:N104,2,2) -> 0.1812822921
A108: Cold Nociception
A110: Genotype | B110: wt | C110: tg | D110: tg | E110: tg | F110: tg | G110: wt | H110: wt | I110: wt | J110: wt | K110: wt | L110: tg | M110: wt | N110: tg | O110: tg | P110: tg | Q110: wt | R110: wt | S110: tg | T110: wt | U110: tg | V110: wt | W110: wt | X110: tg
B112: 4.66 | C112: 19.12 | D112: 11.78 | E112: 5.84 | F112: 7.69 | G112: 6.41 | H112: 5.97 | I112: 12.31 | J112: 16.5 | K112: 8.13 | L112: 14.14 | M112: 12.53 | N112: 5.19 | O112: 20.88 | P112: 4.56 | Q112: 9.34 | R112: 6.1 | S112: 13.53 | T112: 16.59 | U112: 8.34 | V112: 6.06 | W112: 12.65 | X112: 5.22
B113: 5 | C113: 6.82 | D113: 13.16 | E113: 8.19 | F113: 7.66 | G113: 18.53 | H113: 5.47 | I113: 15.81 | J113: 10.47 | K113: 13.82 | L113: 10.44 | M113: 8.1 | N113: 20.09 | O113: 24 | P113: 6.75 | Q113: 12.1 | R113: 9.75 | S113: 6.31 | T113: 5.22 | U113: 5.78 | V113: 5.84 | W113: 24 | X113: 20.94
B114: 5.25 | C114: 16.72 | D114: 24 | E114: 9.41 | F114: 9.88 | G114: 9.31 | H114: 20.78 | I114: 17.19 | J114: 23.78 | K114: 12 | L114: 7.03 | M114: 24 | N114: 5.59 | O114: 15.44 | P114: 11.75 | Q114: 12.13 | R114: 5.31 | S114: 9.84 | T114: 24 | U114: 9.5 | V114: 11.37 | W114: 6.19 | X114: 24
B115: 6.75 | C115: 12.31 | D115: 13.38 | E115: 12.84 | F115: 5.59 | G115: 14.62 | H115: 7.43 | I115: 11.41 | J115: 22.4 | K115: 12.41 | L115: 24 | M115: 13.56 | N115: 5.85 | O115: 18.69 | P115: 13.47 | Q115: 12.69 | R115: 11.53 | S115: 12.28 | T115: 24 | U115: 17.28 | V115: 10.66 | W115: 10.6 | X115: 18.6
B116: 6.53 | C116: 18.97 | D116: 8.53 | E116: 20.28 | F116: 12.06 | G116: 11.53 | H116: 8.54 | I116: 9.16 | J116: 24 | K116: 24 | L116: 24 | M116: 17.7 | N116: 13.34 | O116: 16.09 | P116: 15.72 | Q116: 24 | R116: 6 | S116: 8.84 | T116: 24 | U116: 17.69 | V116: 9.43 | W116: 5.31 | X116: 24
B117: 7.66 | C117: 21.94 | D117: 14.31 | E117: 7.34 | F117: 24 | G117: 8.87 | H117: 8.31 | I117: 6.53 | J117: 8.9 | K117: 24 | L117: 21.35 | M117: 7.41 | N117: 7.53 | O117: 20 | P117: 2.44 | Q117: 6.43 | R117: 10.38 | S117: 21.85 | T117: 24 | U117: 24 | V117: 7.13 | W117: 11.25 | X117: 24
B118: 3.09 | D118: 21.91 | E118: 6.06 | F118: 6.44 | G118: 10.85 | H118: 24 | I118: 13.34 | J118: 24 | K118: 5.94 | L118: 10.03 | M118: 24 | N118: 6.78 | O118: 24 | P118: 5.9 | Q118: 16.44 | R118: 7.13 | S118: 18.65 | T118: 24 | U118: 9.59 | V118: 11.15 | W118: 24 | X118: 24
B119: 11.03 | D119: 15.34 | E119: 12.25 | F119: 6.88 | G119: 2.71 | H119: 5.87 | I119: 6.16 | J119: 9.22 | K119: 11.53 | L119: 5.37 | M119: 24 | N119: 7.85 | O119: 24 | P119: 15.5 | Q119: 17.28 | R119: 7.35 | S119: 24 | T119: 20.47 | V119: 5.91 | W119: 24 | X119: 15.81
B120: =AVERAGE(B112:B119) -> 6.24625 | C120: 15.98 | D120: 15.30125 | E120: 10.27625 | F120: 10.025 | G120: 10.35375 | H120: 10.79625 | I120: 11.48875 | J120: 17.40875 | K120: 13.97875 | L120: 14.545 | M120: 16.4125 | N120: 9.0275 | O120: 20.3875 | P120: 9.51125 | Q120: 13.80125 | R120: 7.94375 | S120: 14.4125 | T120: 20.285 | U120: 13.16857143 | V120: 8.44375 | W120: 14.75 | X120: 19.57125
B122: Latency: Time (s)
Q123: Avarage | R123: number | S123: st error | T123: ttest
B124: Cre - | C124: 6.24625 | D124: 10.35375 | E124: 10.79625 | F124: 11.48875 | G124: 17.40875 | H124: 13.97875 | I124: 16.4125 | J124: 13.80125 | K124: 7.94375 | L124: 20.285 | M124: 8.44375 | N124: 14.75 | Q124: =AVERAGE(C124:N124) -> 12.6590625 | R124: =COUNT(C124:O124) -> 12 | S124: =STDEV(C124:N124)/SQRT(12) -> 1.210754515
B125: Cre + | C125: 15.98 | D125: 15.30125 | E125: 10.27625 | F125: 10.025 | G125: 14.545 | H125: 9.0275 | I125: 20.3875 | J125: 9.51125 | K125: 14.4125 | L125: 13.16857143 | M125: 19.57125 | Q125: =AVERAGE(C125:M125) -> 13.83691558 | R125: =COUNT(C125:O125) -> 11 | S125: =STDEV(C125:M125)/SQRT(11) -> 1.178828768 | T125: =TTEST(C124:N124,C125:M125,2,2) -> 0.4947983647

Sheet Figure 5L
A1: CNO 0.7 mg/kg
A2: genotype | B2: wt | E2: wt | H2: tg | K2: tg | N2: wt | Q2: wt | T2: tg | W2: wt | Z2: tg | AC2: wt | AF2: tg | AI2: tg
B3: min | C3: biting time | E3: min | F3: biting time | H3: min | I3: biting time | K3: min | L3: biting time | N3: min | O3: biting time | Q3: min | R3: biting time | T3: min | U3: biting time | W3: min | X3: biting time | Z3: min | AA3: biting time | AC3: min | AD3: biting time | AF3: min | AG3: biting time | AI3: min | AJ3: biting time
B4: BL | C4: 11 | E4: BL | F4: 29 | H4: BL | I4: 0 | K4: BL | L4: 3 | N4: BL | O4: 0 | Q4: BL | R4: 11 | T4: BL | U4: 9 | W4: BL | X4: 28 | Z4: BL | AA4: 30 | AC4: BL | AD4: 5 | AF4: BL | AG4: 0 | AI4: BL | AJ4: 34
B5: 0-5 | C5: 14 | E5: 0-5 | F5: 10 | H5: 0-5 | I5: 62 | K5: 0-5 | L5: 43 | N5: 0-5 | O5: 7 | Q5: 0-5 | R5: 3 | T5: 0-5 | U5: 13 | W5: 0-5 | X5: 27 | Z5: 0-5 | AA5: 72 | AC5: 0-5 | AD5: 0 | AF5: 0-5 | AG5: 34 | AI5: 0-5 | AJ5: 35
B6: 5-10 | C6: 0 | E6: 5-10 | F6: 0 | H6: 5-10 | I6: 36 | K6: 5-10 | L6: 44 | N6: 5-10 | O6: 0 | Q6: 5-10 | R6: 0 | T6: 5-10 | U6: 0 | W6: 5-10 | X6: 0 | Z6: 5-10 | AA6: 62 | AC6: 5-10 | AD6: 0 | AF6: 5-10 | AG6: 9 | AI6: 5-10 | AJ6: 57
B7: 10-15 | C7: 14 | E7: 10-15 | F7: 61 | H7: 10-15 | I7: 74 | K7: 10-15 | L7: 27 | N7: 10-15 | O7: 0 | Q7: 10-15 | R7: 0 | T7: 10-15 | U7: 61 | W7: 10-15 | X7: 28 | Z7: 10-15 | AA7: 89 | AC7: 10-15 | AD7: 0 | AF7: 10-15 | AG7: 19 | AI7: 10-15 | AJ7: 51
B8: 15-20 | C8: 21 | E8: 15-20 | F8: 0 | H8: 15-20 | I8: 72 | K8: 15-20 | L8: 0 | N8: 15-20 | O8: 0 | Q8: 15-20 | R8: 14 | T8: 15-20 | U8: 50 | W8: 15-20 | X8: 9 | Z8: 15-20 | AA8: 0 | AC8: 15-20 | AD8: 0 | AF8: 15-20 | AG8: 107 | AI8: 15-20 | AJ8: 103
B9: 20-25 | C9: 0 | E9: 20-25 | F9: 6 | H9: 20-25 | I9: 44 | K9: 20-25 | L9: 0 | N9: 20-25 | O9: 0 | Q9: 20-25 | R9: 0 | T9: 20-25 | U9: 1 | W9: 20-25 | X9: 0 | Z9: 20-25 | AA9: 0 | AC9: 20-25 | AD9: 0 | AF9: 20-25 | AG9: 2 | AI9: 20-25 | AJ9: 19
B10: 25-30 | C10: 0 | E10: 25-30 | F10: 0 | H10: 25-30 | I10: 139 | K10: 25-30 | L10: 0 | N10: 25-30 | O10: 0 | Q10: 25-30 | R10: 0 | T10: 25-30 | U10: 2 | W10: 25-30 | X10: 0 | Z10: 25-30 | AA10: 0 | AC10: 25-30 | AD10: 0 | AF10: 25-30 | AG10: 0 | AI10: 25-30 | AJ10: 34
B12: TOT | C12: =SUM(C5:C10) -> 49 | E12: TOT | F12: =SUM(F5:F10) -> 77 | H12: TOT | I12: =SUM(I5:I10) -> 427 | K12: TOT | L12: =SUM(L5:L10) -> 114 | N12: TOT | O12: =SUM(O5:O10) -> 7 | Q12: TOT | R12: =SUM(R5:R10) -> 17 | T12: TOT | U12: =SUM(U5:U10) -> 127 | W12: TOT | X12: =SUM(X5:X10) -> 64 | Z12: TOT | AA12: =SUM(AA5:AA10) -> 223 | AC12: TOT | AD12: =SUM(AD5:AD10) -> 0 | AF12: TOT | AG12: =SUM(AG5:AG10) -> 171 | AI12: TOT | AJ12: =SUM(AJ5:AJ10) -> 299
K14: Avarage | L14: number | M14: st error | N14: ttest
B15: Cre - | C15: 49 | D15: 77 | E15: 7 | F15: 17 | G15: 64 | H15: 0 | K15: =AVERAGE(C15:H15) -> 35.66666667 | L15: =COUNT(C15:H15) -> 6 | M15: =STDEV(C15:H15)/SQRT(L15) -> 13.0783961
B16: Cre + | C16: 427 | D16: 114 | E16: 127 | F16: 223 | G16: 171 | H16: 299 | K16: =AVERAGE(C16:H16) -> 226.8333333 | L16: =COUNT(C16:H16) -> 6 | M16: =STDEV(C16:H16)/SQRT(L16) -> 48.68430046 | N16: =TTEST(C15:H15,C16:H16,2,2) -> 0.003530581138
A20: CNO 0.1 mg/kg
A21: genotype | B21: wt | E21: tg | H21: tg | K21: tg | N21: tg | Q21: wt | T21: wt | W21: wt | Z21: tg | AC21: wt | AF21: tg | AI21: wt
B22: min | C22: biting time | E22: min | F22: biting time | H22: min | I22: biting time | K22: min | L22: biting time | N22: min | O22: biting time | Q22: min | R22: biting time | T22: min | U22: biting time | W22: min | X22: biting time | Z22: min | AA22: biting time | AC22: min | AD22: biting time | AF22: min | AG22: biting time | AI22: min | AJ22: biting time
B23: BL | E23: BL | H23: BL | K23: BL | N23: BL | Q23: BL | T23: BL | W23: BL | Z23: BL | AC23: BL | AF23: BL | AI23: BL
B24: 0-5 | C24: 20 | E24: 0-5 | F24: 6 | H24: 0-5 | I24: 93 | K24: 0-5 | L24: 0 | N24: 0-5 | O24: 33 | Q24: 0-5 | R24: 0 | T24: 0-5 | U24: 13 | W24: 0-5 | X24: 23 | Z24: 0-5 | AA24: 0 | AC24: 0-5 | AD24: 2 | AF24: 0-5 | AG24: 63 | AI24: 0-5 | AJ24: 10
B25: 5-10 | C25: 0 | E25: 5-10 | F25: 14 | H25: 5-10 | I25: 39 | K25: 5-10 | L25: 46 | N25: 5-10 | O25: 35 | Q25: 5-10 | R25: 24 | T25: 5-10 | U25: 0 | W25: 5-10 | X25: 6 | Z25: 5-10 | AA25: 0 | AC25: 5-10 | AD25: 0 | AF25: 5-10 | AG25: 66 | AI25: 5-10 | AJ25: 0
B26: 10-15 | C26: 0 | E26: 10-15 | F26: 27 | H26: 10-15 | I26: 75 | K26: 10-15 | L26: 22 | N26: 10-15 | O26: 38 | Q26: 10-15 | R26: 0 | T26: 10-15 | U26: 0 | W26: 10-15 | X26: 10 | Z26: 10-15 | AA26: 0 | AC26: 10-15 | AD26: 44 | AF26: 10-15 | AG26: 78 | AI26: 10-15 | AJ26: 0
B27: 15-20 | C27: 0 | E27: 15-20 | F27: 0 | H27: 15-20 | I27: 3 | K27: 15-20 | L27: 42 | N27: 15-20 | O27: 32 | Q27: 15-20 | R27: 4 | T27: 15-20 | U27: 0 | W27: 15-20 | X27: 0 | Z27: 15-20 | AA27: 0 | AC27: 15-20 | AD27: 0 | AF27: 15-20 | AG27: 0 | AI27: 15-20 | AJ27: 0
B28: 20-25 | C28: 3 | E28: 20-25 | F28: 0 | H28: 20-25 | I28: 0 | K28: 20-25 | L28: 0 | N28: 20-25 | O28: 54 | Q28: 20-25 | R28: 0 | T28: 20-25 | U28: 0 | W28: 20-25 | X28: 0 | Z28: 20-25 | AA28: 0 | AC28: 20-25 | AD28: 0 | AF28: 20-25 | AG28: 0 | AI28: 20-25 | AJ28: 0
B29: 25-30 | C29: 5 | E29: 25-30 | F29: 6 | H29: 25-30 | I29: 0 | K29: 25-30 | L29: 0 | N29: 25-30 | O29: 59 | Q29: 25-30 | R29: 24 | T29: 25-30 | U29: 0 | W29: 25-30 | X29: 0 | Z29: 25-30 | AA29: 2 | AC29: 25-30 | AD29: 0 | AF29: 25-30 | AG29: 0 | AI29: 25-30 | AJ29: 0
B31: TOT | C31: =SUM(C24:C29) -> 28 | E31: TOT | F31: =SUM(F24:F29) -> 53 | H31: TOT | I31: =SUM(I24:I29) -> 210 | K31: TOT | L31: =SUM(L24:L29) -> 110 | N31: TOT | O31: =SUM(O24:O29) -> 251 | Q31: TOT | R31: =SUM(R24:R29) -> 52 | T31: TOT | U31: =SUM(U24:U29) -> 13 | W31: TOT | X31: =SUM(X24:X29) -> 39 | Z31: TOT | AA31: =SUM(AA24:AA29) -> 2 | AC31: TOT | AD31: =SUM(AD24:AD29) -> 46 | AF31: TOT | AG31: =SUM(AG24:AG30) -> 207 | AI31: TOT | AJ31: =SUM(AJ24:AJ29) -> 10
K33: Avarage | L33: number | M33: st error | N33: ttest
B34: Cre - | C34: 28 | D34: 52 | E34: 13 | F34: 39 | G34: 46 | H34: 10 | K34: =AVERAGE(C34:H34) -> 31.33333333 | L34: =COUNT(C34:H34) -> 6 | M34: =STDEV(C34:H34)/SQRT(L34) -> 7.078920194
B35: Cre + | C35: 53 | D35: 210 | E35: 110 | F35: 251 | G35: 2 | H35: 207 | K35: =AVERAGE(C35:H35) -> 138.8333333 | L35: =COUNT(C35:H35) -> 6 | M35: =STDEV(C35:H35)/SQRT(L35) -> 40.50301772 | N35: =TTEST(C34:H34,C35:H35,2,2) -> 0.02584082692
A39: CNO 0.02 mg/kg
A40: genotype | B40: wt | E40: wt | H40: tg | K40: tg | N40: wt | Q40: wt | T40: tg | W40: wt | Z40: tg | AC40: wt | AF40: tg | AI40: tg
B41: min | C41: biting time | E41: min | F41: biting time | H41: min | I41: biting time | K41: min | L41: biting time | N41: min | O41: biting time | Q41: min | R41: biting time | T41: min | U41: biting time | W41: min | X41: biting time | Z41: min | AA41: biting time | AC41: min | AD41: biting time | AF41: min | AG41: biting time | AI41: min | AJ41: biting time
B42: BL | C42: 6 | E42: BL | F42: 0 | H42: BL | I42: 6 | K42: BL | L42: 0 | N42: BL | O42: 23 | Q42: BL | R42: 0 | T42: BL | U42: 0 | W42: BL | X42: 15 | Z42: BL | AA42: 1 | AC42: BL | AD42: 1 | AF42: BL | AG42: 44 | AI42: BL | AJ42: 0
B43: 0-5 | C43: 24 | E43: 0-5 | F43: 1 | H43: 0-5 | I43: 22 | K43: 0-5 | L43: 10 | N43: 0-5 | O43: 27 | Q43: 0-5 | R43: 2 | T43: 0-5 | U43: 0 | W43: 0-5 | X43: 7 | Z43: 0-5 | AA43: 1 | AC43: 0-5 | AD43: 21 | AF43: 0-5 | AG43: 0 | AI43: 0-5 | AJ43: 78
B44: 5-10 | C44: 0 | E44: 5-10 | F44: 1 | H44: 5-10 | I44: 0 | K44: 5-10 | L44: 0 | N44: 5-10 | O44: 0 | Q44: 5-10 | R44: 0 | T44: 5-10 | U44: 0 | W44: 5-10 | X44: 0 | Z44: 5-10 | AA44: 11 | AC44: 5-10 | AD44: 0 | AF44: 5-10 | AG44: 0 | AI44: 5-10 | AJ44: 11
B45: 10-15 | C45: 0 | E45: 10-15 | F45: 0 | H45: 10-15 | I45: 2 | K45: 10-15 | L45: 0 | N45: 10-15 | O45: 0 | Q45: 10-15 | R45: 0 | T45: 10-15 | U45: 0 | W45: 10-15 | X45: 0 | Z45: 10-15 | AA45: 27 | AC45: 10-15 | AD45: 0 | AF45: 10-15 | AG45: 0 | AI45: 10-15 | AJ45: 0
B46: 15-20 | C46: 0 | E46: 15-20 | F46: 0 | H46: 15-20 | I46: 52 | K46: 15-20 | L46: 0 | N46: 15-20 | O46: 0 | Q46: 15-20 | R46: 0 | T46: 15-20 | U46: 0 | W46: 15-20 | X46: 0 | Z46: 15-20 | AA46: 13 | AC46: 15-20 | AD46: 0 | AF46: 15-20 | AG46: 0 | AI46: 15-20 | AJ46: 1
B47: 20-25 | C47: 3 | E47: 20-25 | F47: 0 | H47: 20-25 | I47: 0 | K47: 20-25 | L47: 0 | N47: 20-25 | O47: 0 | Q47: 20-25 | R47: 0 | T47: 20-25 | U47: 0 | W47: 20-25 | X47: 0 | Z47: 20-25 | AA47: 0 | AC47: 20-25 | AD47: 0 | AF47: 20-25 | AG47: 0 | AI47: 20-25 | AJ47: 3
B48: 25-30 | C48: 20 | E48: 25-30 | F48: 0 | H48: 25-30 | I48: 18 | K48: 25-30 | L48: 0 | N48: 25-30 | O48: 0 | Q48: 25-30 | R48: 0 | T48: 25-30 | U48: 0 | W48: 25-30 | X48: 0 | Z48: 25-30 | AA48: 0 | AC48: 25-30 | AD48: 0 | AF48: 25-30 | AG48: 0 | AI48: 25-30 | AJ48: 0
B50: TOT | C50: =SUM(C43:C48) -> 47 | E50: TOT | F50: =SUM(F43:F48) -> 2 | H50: TOT | I50: =SUM(I43:I48) -> 94 | K50: TOT | L50: =SUM(L43:L48) -> 10 | N50: TOT | O50: =SUM(O43:O48) -> 27 | Q50: TOT | R50: =SUM(R43:R48) -> 2 | T50: TOT | U50: =SUM(U43:U48) -> 0 | W50: TOT | X50: =SUM(X43:X48) -> 7 | Z50: TOT | AA50: =SUM(AA43:AA48) -> 52 | AC50: TOT | AD50: =SUM(AD43:AD48) -> 21 | AF50: TOT | AG50: =SUM(AG43:AG48) -> 0 | AI50: TOT | AJ50: =SUM(AJ43:AJ48) -> 93
K52: Avarage | L52: number | M52: st error | N52: ttest
B53: Cre - | C53: 47 | D53: 2 | E53: 27 | F53: 2 | G53: 7 | H53: 21 | K53: =AVERAGE(C53:H53) -> 17.66666667 | L53: =COUNT(C53:H53) -> 6 | M53: =STDEV(C53:H53)/SQRT(L53) -> 7.218802609
B54: Cre + | C54: 94 | D54: 10 | E54: 0 | F54: 52 | G54: 0 | H54: 93 | K54: =AVERAGE(C54:H54) -> 41.5 | L54: =COUNT(C54:H54) -> 6 | M54: =STDEV(C54:H54)/SQRT(L54) -> 18.21675053 | N54: =TTEST(C53:H53,C54:H54,2,2) -> 0.2517999405

Sheet Figure 5M
A1: CNO 0.7 mg/kg
A3: Genotype | B3: wt | C3: wt | D3: tg | E3: tg | F3: wt | G3: wt | H3: tg | I3: wt | J3: tg | K3: wt | L3: tg | M3: tg
B5: 9.92 | C5: 5.19 | D5: 5.25 | E5: 32 | F5: 32 | G5: 7.03 | H5: 8.86 | I5: 32 | J5: 32 | K5: 7.39 | L5: 11.02 | M5: 5.41
B6: 11.25 | C6: 5.1 | D6: 12 | E6: 4.93 | F6: 5.32 | G6: 4.09 | H6: 32 | I6: 32 | J6: 7.62 | K6: 32 | L6: 6.15 | M6: 4.42
B7: 12.23 | C7: 8.22 | D7: 12.32 | E7: 32 | F7: 32 | G7: 5.11 | H7: 32 | I7: 32 | J7: 18.58 | K7: 5.56 | L7: 11.15 | M7: 20.84
B8: 19.04 | C8: 18.79 | D8: 10.77 | E8: 32 | F8: 32 | G8: 4.19 | H8: 27.12 | I8: 32 | J8: 4.06 | K8: 9.42 | L8: 17.15 | M8: 3.64
B9: 11.37 | C9: 14.37 | D9: 14.42 | E9: 23.37 | F9: 32 | G9: 5.22 | H9: 25.75 | I9: 26.42 | J9: 3.14 | K9: 32 | L9: 4.19 | M9: 22.01
B10: 23.56 | C10: 4.27 | D10: 9.74 | E10: 26.49 | F10: 2.57 | G10: 9.24 | H10: 27.43 | I10: 30.56 | J10: 32 | K10: 8.71 | L10: 19.97 | M10: 32
B11: 13.79 | C11: 6.68 | D11: 8.55 | E11: 17.11 | F11: 32 | G11: 32 | H11: 19.09 | I11: 32 | J11: 29.99 | K11: 32 | L11: 10.57 | M11: 29.89
B12: 17.02 | C12: 7.88 | D12: 9.72 | E12: 5.25 | F12: 15.69 | G12: 9.88 | H12: 30.38 | I12: 5.02 | J12: 3.13 | K12: 11.17 | L12: 15.04 | M12: 3.64
B13: =AVERAGE(B5:B12) -> 14.7725 | C13: 8.8125 | D13: 10.34625 | E13: 21.64375 | F13: 22.9475 | G13: 9.595 | H13: 25.32875 | I13: 27.75 | J13: 16.315 | K13: 17.28125 | L13: 11.905 | M13: 15.23125
K15: Avarage | L15: number | M15: st error | N15: ttest
B16: wt | C16: 14.7725 | D16: 8.8125 | E16: 22.9475 | F16: 9.595 | G16: 27.75 | H16: 17.28125 | K16: =AVERAGE(C16:H16) -> 16.85979167 | L16: =COUNT(C16:H16) -> 6 | M16: =STDEV(C16:H16)/SQRT(L16) -> 3.042626853
B17: tg | C17: 10.34625 | D17: 21.64375 | E17: 25.32875 | F17: 16.315 | G17: 11.905 | H17: 15.23125 | K17: =AVERAGE(C17:H17) -> 16.795 | L17: =COUNT(C17:H17) -> 6 | M17: =STDEV(C17:H17)/SQRT(L17) -> 2.341719142 | N17: =TTEST(C16:H16,C17:H17,2,2) -> 0.9868680189
A21: CNO 0.1 mg/kg
A23: Genotype | B23: wt | C23: tg | D23: tg | E23: tg | F23: tg | G23: wt | H23: wt | I23: wt | J23: tg | K23: wt | L23: tg | M23: wt
B25: 15.36 | C25: 16.8 | D25: 16.29 | E25: 22.27 | F25: 5.94 | G25: 4.47 | H25: 9.67 | I25: 10.93 | J25: 4.32 | K25: 15.28 | L25: 15.17 | M25: 11.3
B26: 4.48 | C26: 23.25 | D26: 17.78 | E26: 24.04 | F26: 12.8 | G26: 15.44 | H26: 3.56 | I26: 8.54 | J26: 3.24 | K26: 29.29 | L26: 17.67 | M26: 18.57
B27: 4.38 | C27: 9.85 | D27: 7.95 | E27: 3.69 | F27: 14.44 | G27: 17.28 | H27: 20.26 | I27: 6.56 | J27: 3.02 | K27: 15.9 | L27: 7.74 | M27: 11.15
B28: 14.76 | C28: 22.49 | D28: 10.18 | E28: 11.58 | F28: 5.56 | G28: 10.59 | H28: 2.97 | I28: 20.38 | J28: 2.08 | K28: 10.06 | L28: 13.88 | M28: 9.96
B29: 18.58 | C29: 9.68 | D29: 14.58 | E29: 9.78 | F29: 9.69 | G29: 8.65 | H29: 1.83 | I29: 10.06 | J29: 2.18 | K29: 13.64 | L29: 11.7 | M29: 4.51
B30: 32 | C30: 17.66 | D30: 15.27 | E30: 32 | F30: 4.74 | G30: 8.85 | H30: 15.05 | I30: 7.16 | J30: 6.4 | K30: 17.83 | L30: 19.39 | M30: 12.88
B31: 3.46 | C31: 22.07 | D31: 9.53 | E31: 20.38 | F31: 15.71 | G31: 10.11 | H31: 9.28 | I31: 3.48 | J31: 16.82 | K31: 16.53 | L31: 12.75 | M31: 5.14
B32: 8.41 | C32: 17.1 | D32: 15.57 | E32: 4.94 | F32: 32 | G32: 2.65 | H32: 32 | I32: 7.62 | J32: 10.2 | K32: 32 | L32: 14.25 | M32: 9.4
B33: =AVERAGE(B25:B32) -> 12.67875 | C33: 17.3625 | D33: 13.39375 | E33: 16.085 | F33: 12.61 | G33: 9.755 | H33: 11.8275 | I33: 9.34125 | J33: 6.0325 | K33: 18.81625 | L33: 14.06875 | M33: 10.36375
K35: Avarage | L35: number | M35: st error | N35: ttest
B36: wt | C36: 12.67875 | D36: 9.755 | E36: 11.8275 | F36: 9.34125 | G36: 18.81625 | H36: 10.36375 | K36: =AVERAGE(C36:H36) -> 12.13041667 | L36: =COUNT(C36:H36) -> 6 | M36: =STDEV(C36:H36)/SQRT(L36) -> 1.433363893
B37: tg | C37: 17.3625 | D37: 13.39375 | E37: 16.085 | F37: 12.61 | G37: 6.0325 | H37: 14.06875 | K37: =AVERAGE(C37:H37) -> 13.25875 | L37: =COUNT(C37:H37) -> 6 | M37: =STDEV(C37:H37)/SQRT(L37) -> 1.613922176 | N37: =TTEST(C36:H36,C37:H37,2,2) -> 0.6125456053
A41: CNO 0.02 mg/kg
A43: Genotype | B43: wt | C43: wt | D43: tg | E43: tg | F43: wt | G43: wt | H43: tg | I43: wt | J43: tg | K43: wt | L43: tg | M43: tg
B45: 16.7 | C45: 7.15 | D45: 12.45 | E45: 15.41 | F45: 11.49 | G45: 19.71 | H45: 8.65 | I45: 17.11 | J45: 11.92 | K45: 19.9 | L45: 22.83 | M45: 22.51
B46: 15.97 | C46: 15.67 | D46: 13.5 | E46: 20.51 | F46: 12.86 | G46: 32 | H46: 29.33 | I46: 32 | J46: 17.91 | K46: 3.8 | L46: 32 | M46: 11.83
B47: 12.74 | C47: 11.21 | D47: 6.8 | E47: 17.86 | F47: 16.4 | G47: 7.83 | H47: 32 | I47: 32 | J47: 11.58 | K47: 5.53 | L47: 9.9 | M47: 3.46
B48: 16.34 | C48: 14.07 | D48: 15.16 | E48: 32 | F48: 24.28 | G48: 32 | H48: 32 | I48: 32 | J48: 12.72 | K48: 3.82 | L48: 14.52 | M48: 6.58
B49: 32 | C49: 15.57 | D49: 20.48 | E49: 16.08 | F49: 22.37 | G49: 32 | H49: 14.44 | I49: 21.79 | J49: 22.25 | K49: 15.09 | L49: 12.97 | M49: 23.7
B50: 25.18 | C50: 9.68 | D50: 15.48 | E50: 32 | F50: 27.41 | G50: 32 | H50: 13.97 | I50: 32 | J50: 13.64 | K50: 9.51 | L50: 14.83 | M50: 32
B51: 17.02 | C51: 16.37 | D51: 32 | E51: 28.04 | F51: 19.47 | G51: 32 | H51: 21.72 | I51: 27.86 | J51: 29.03 | K51: 5.38 | L51: 29.78 | M51: 12.86
B52: 13.72 | C52: 10.23 | D52: 22.32 | E52: 14.61 | F52: 8.53 | G52: 32 | H52: 24.91 | I52: 21.82 | J52: 23.86 | K52: 32 | L52: 17.66 | M52: 23.24
B53: =AVERAGE(B45:B52) -> 18.70875 | C53: 12.49375 | D53: 17.27375 | E53: 22.06375 | F53: 17.85125 | G53: 27.4425 | H53: 22.1275 | I53: 27.0725 | J53: 17.86375 | K53: 11.87875 | L53: 19.31125 | M53: 17.0225
K55: Avarage | L55: number | M55: st error | N55: ttest
B56: wt | C56: 18.70875 | D56: 12.49375 | E56: 17.85125 | F56: 27.4425 | G56: 27.0725 | H56: 11.87875 | K56: =AVERAGE(C56:H56) -> 19.24125 | L56: =COUNT(C56:H56) -> 6 | M56: =STDEV(C56:H56)/SQRT(L56) -> 2.772121912
B57: tg | C57: 17.27375 | D57: 22.06375 | E57: 22.1275 | F57: 17.86375 | G57: 19.31125 | H57: 17.0225 | K57: =AVERAGE(C57:H57) -> 19.27708333 | L57: =COUNT(C57:H57) -> 6 | M57: =STDEV(C57:H57)/SQRT(L57) -> 0.948429495 | N57: =TTEST(C56:H56,C57:H57,2,2) -> 0.9904824204
